{"text_format":"1","workbook":"xlsx","n_sheets":14,"sheets":["Cover","Div.02","Div.03","Div.04","Div.05","Div.06","Div.07","Div.08","Div.09","Div.10","Div.15a","Div.15b","Div.16","Summary"],"not_rendered":{"charts":0,"images":0,"macros":1,"external_links":0,"defined_names":36,"comments":0,"pivot_tables":0},"unopened":[],"bounds":{"document_bytes":16777216,"sheet_cells":100000,"rows_first":2000,"rows_last":500,"rows_between":2000,"halvings":0,"cell_chars":16384,"cell_head_chars":4096},"cells_cut":0,"cells_raw":0,"read":"whole","date_system":"1900"}

{"sheet":"Cover","index":0,"n_rows":12,"n_cols":1,"rows_kept":12,"cut":false,"hidden":false,"merged":[[17,0,17,13],[19,0,19,13],[7,0,7,13],[9,0,9,13],[11,0,11,13],[13,0,13,13],[15,0,15,13]]}
[]
[]
[]
[]
[]
[]
[]
[]
[]
[]
[]
["جدول كميات: مبني الإدارة (B05)"]

{"sheet":"Div.02","index":1,"n_rows":116,"n_cols":10,"rows_kept":116,"cut":false,"hidden":false,"merged":[[5,0,6,0],[5,1,6,1],[5,8,6,8],[5,9,6,9]]}
[]
[]
[]
[]
[]
["ITEM","DESCRIPTION","السعر الإجمالي كتابة","السعر الإجمالي رقمًا","السعر الإفرادي كتابة ","السعر الإفرادي رقماً","الوحدة","الكمية","الـــوصــــف","بند"]
[null,null,"Total in words (SR) ","Total in figures","Rate in figures","RATE","UNIT","QTY"]
[]
[2,"DIVISION 2 - SITE CONSTRUCTION",null,{"$f":"H9*F9","v":0},null,null,null,null,"القسم الثانى - أعمال الموقع",{"$f":"A9","v":2}]
[null,null,null,0,null,null,null,null,null,0]
[null,"Earthworks",null,0,null,null,null,null,"الأعمال الترابية ",0]
[null,null,null,0,null,null,null,null,null,0]
[2.1,"Excavation in unclassified types of soil",null,0,null,null,null,null,"الحفر فى جميع أنواع التربة بما فيها التربة الصخرية من",2.1]
[null,"including rocks, from level surface of the",null,0,null,null,null,null,"منسوب سطح الأرض الطبيعية حتى مناسيب التأسيس",0]
[null,"Earth's natural to levels of incorporation and",null,0,null,null,null,null,"ويشتمل على دعامات الأعمال الترابية المؤقتة، نزح المياه",0]
[null,"include the pillars of the earthworks",null,0,null,null,null,null,"وأى أعمال تحت منسوب المياه الأرضية، معالجة منسوب",0]
[null,"temporary dewatering and any acts under the",null,0,null,null,null,null,"التأسيس حسب توصيات تقرير التربة والمخططات، كما يشمل",0]
[null,"level of ground water treatment levels",null,0,null,null,null,null,"نقل مواد الحفر خارج الموقع للمرادم المعتمدة طبقاً",0]
[null,"established by the recommendations of the",null,0,null,null,null,null,"للمواصفات الفنية القسم 02200 ولتعليمات المهندس",0]
[null,"soil and charts, also includes the transport of",null,0,null,null,null,null,"المشرف",0]
[null,"drilling outside site to landfill approved in",null,0,null,null,null,null,null,0]
[null,"accordance with specs section no. 02200 and",null,0,null,null,null,null,null,0]
[null,"the instructions of the supervising engineer",null,0,null,null,null,null,null,0]
[null,null,null,0,null,null,null,null,null,0]
["2.1.1","Excavation  for foundations ",null,{"$f":"F25*H25","v":0},null,null,"M3",null,"حفر  للأساسات ","2.1.1"]
[null,null,null,0,null,null,null,null,null,0]
[null,null,null,0,null,null,null,null,null,0]
[null,null,null,0,null,null,null,null,null,0]
[null,null,null,0,null,null,null,null,null,0]
[null,null,null,0,null,null,null,null,null,0]
[null,null,null,0,null,null,null,null,null,0]
[null,null,null,0,null,null,null,null,null,0]
[null,null,null,0,null,null,null,null,null,0]
[null,null,null,0,null,null,null,null,null,0]
[null,"To Collection",null,{"$f":"SUM(D7:D34)","v":0},null,null,null,null,"المجموع المرحل",0]
[null,null,null,{"$f":"F36*H36","v":0},null,null,null,null,null,0]
[null,null,null,0,null,null,null,null,null,0]
[2.2000000000000002,"Filling",null,0,null,null,null,null,"الردم",2.2000000000000002]
[null,null,null,0,null,null,null,null,null,0]
["2.2.1","Approved granular fill selected materials from",null,{"$f":"F40*H40","v":0},null,null,"M3",null,"الردم بأتربة معتمدة تم اختيارها من مواد نواتج الحفر أو تم","2.2.1"]
[null,"cuttings and / or imported from outside the site by",null,0,null,null,null,null,"توريدها من خارج الموقع حسب توصيات تقرير فحص تربة",0]
[null,"the recommendations of the soil investigation of the",null,0,null,null,null,null,"الموقع وتخضع لموافقة المهندس وذلك لتعويض المناسيب أسفل",0]
[null,"site and subject to the consent of the engineer and",null,0,null,null,null,null,"وحول الأساسات وأسفل بلاطات الأرضية على طبقات متضمنة",0]
[null,"to compensate for elevation down and around the",null,0,null,null,null,null,"أعمال الدك والاختبارات لكل طبقة وما شابه ذلك من أعمال",0]
[null,"foundation and the bottom of the slabs to ground",null,0,null,null,null,null,"وذلك طبقا للمواصفات الفنية قسم 02200",0]
[null,"layers, including the  work of compaction and tests",null,0,null,null,null,null,null,0]
[null,"for each layer, etc. of the work in accordance with",null,0,null,null,null,null,null,0]
[null,"technical specifications section 02200",null,0,null,null,null,null,null,0]
[null,null,null,0,null,null,null,null,null,0]
[2.2999999999999998,"Drainage layer",null,0,null,null,null,null,"طبقة الصرف",2.2999999999999998]
[null,null,null,0,null,null,null,null,null,0]
["2.3.1","100 mm thick compacted coarse gravel to",null,{"$f":"F52*H52","v":0},null,null,"M2",null,"طبقة من الحصى الخشن المدموك بسمك 100 مم تحت","2.3.1"]
[null,"underside of slabs on grade , item includes all",null,0,null,null,null,null,"البلاطات الأرضية والبند يشمل كل ما يلزم لانهاء الأعمال",0]
[null,"required to complete finishing the works as per",null,0,null,null,null,null,"حسب المواصفات والمخططات قسم 02200",0]
[null,"drawing and specifications 02200",null,0,null,null,null,null,null,0]
[null,null,null,0,null,null,null,null,null,0]
[null,null,null,0,null,null,null,null,null,0]
[null,null,null,0,null,null,null,null,null,0]
[null,null,null,0,null,null,null,null,null,0]
[null,null,null,0,null,null,null,null,null,0]
[null,null,null,0,null,null,null,null,null,0]
[null,"To Collection",null,{"$f":"SUM(D36:D61)","v":0},null,null,null,null,"المجموع المرحل",0]
[null,null,null,{"$f":"F63*H63","v":0},null,null,null,null,null,0]
[null,null,null,0,null,null,null,null,null,0]
[2.4,"Soil treatment application for termite control ",null,0,null,null,null,null,"مكافحة النمل الأبيض",2.4]
[null,null,null,0,null,null,null,null,null,0]
["2.4.1","Below slab on grade and along periphery of building",null,{"$f":"F67*H67","v":0},null,null,"M2",null,"تحت البلاطات وعلى طول محيط المبنى شاملاً المواد الكيماوية","2.4.1"]
[null,"including chemical, organic materials, civil works",null,0,null,null,null,null,"والعضوية والأعمال المدنية المرفقة وكافة ما يلزم حسب"]
[null,"and all required worksas per specifications section",null,0,null,null,null,null,"تعليمات الشركة الصانعة والمواصفات الفنية القسم 02285"]
[null,"02285",null,0]
[null,null,null,0]
[null,null,null,0]
[null,null,null,{"$f":"H73*F73","v":0}]
[null,null,null,0]
[null,null,null,0]
[null,null,null,0]
[null,null,null,0]
[null,null,null,0]
[null,null,null,0]
[null,null,null,0]
[null,null,null,0]
[null,null,null,0]
[null,null,null,0]
[null,null,null,0]
[null,null,null,0]
[null,null,null,0]
[null,null,null,0]
[null,null,null,0]
[null,"To Collection",null,{"$f":"SUM(D63:D88)","v":0},null,null,null,null,"المجموع المرحل"]
[null,null,null,{"$f":"F90*H90","v":0}]
[]
[null,"Total Summary",null,null,null,null,null,null,"إجمالى ملخص الأعمال"]
[]
[null,"Sheet - 01",null,{"$f":"D35","v":0},null,null,null,null,"صفحة - 01"]
[]
[null,"Sheet - 02",null,{"$f":"D62","v":0},null,null,null,null,"صفحة - 02"]
[]
[null,"Sheet - 03",null,{"$f":"D89","v":0},null,null,null,null,"صفحة - 03"]
[]
[null,null,null,{"$f":"D74","v":0}]
[]
[]
[]
[]
[]
[]
[]
[]
[]
[]
[]
[]
[]
[]
[]
[null,"To Bill Summary",null,{"$f":"SUM(D92:D115)","v":0},null,null,null,null,"المجموع المرحل إلى ملخص جدول الكميات"]

{"sheet":"Div.03","index":2,"n_rows":143,"n_cols":10,"rows_kept":143,"cut":false,"hidden":false,"merged":[[5,0,6,0],[5,1,6,1],[5,8,6,8],[5,9,6,9]]}
[]
[]
[]
[]
[]
["ITEM","DESCRIPTION","السعر الإجمالي كتابة","السعر الإجمالي رقمًا","السعر الإفرادي كتابة ","السعر الإفرادي رقماً","الوحدة","الكمية","الـــوصــــف","بند"]
[null,null,"Total in words (SR) ","Total in figures","Rate in figures","RATE","UNIT","QTY"]
[]
["3","DIVISION 3 - CONCRETE ",null,{"$f":"H9*F9","v":0},null,null,null,null,"القسم الثالث - الخرسانة",{"$f":"A9","v":"3"}]
[null,null,null,{"$f":"H10*F10","v":0},null,null,null,null,null,0]
[null,"CAST IN PLACE CONCRETE",null,{"$f":"H11*F11","v":0},null,null,null,null," الخرسانة المصبوبة فى الموقع",0]
[null,null,null,{"$f":"H12*F12","v":0},null,null,null,null,null,0]
[3.1,"Plain concrete insitu, 20 Mpa, for underground",null,null,null,null,null,null,"خرسانة عادية مصبوبة فى الموقع بقوة 20 ميجاباسكال طبقا",3.1]
[null,"parts using type of cement as per soil report ",null,null,null,null,null,null,"للأجزاء السفلية تحت منسوب الارض بإستخدام نوع أسمنت ",0]
[null,"recommendations andborholes. Price includes",null,null,null,null,null,null,"طبقا للتوصيات الواردة بتقرير فحص التربة والجسات",0]
[null,"forms and all additional works including",null,null,null,null,null,null,"والسعر يشمل الشدات وجميع الأعمال الإضافية شاملة",0]
[null,"curing by water,tests and all necessary as per",null,null,null,null,null,null,"المعالجة بالماء والإختبارات وكل ما يلزم طبقا لمواصفات",0]
[null,"performance specifications section 03300",null,null,null,null,null,null,"الأداء والمواصفات الفنية والمخططات وإعتماد للمرادم",0]
[null,"&03100",null,null,null,null,null,null,"المعتمدة طبقاً للمواصفات الفنية قسم 03300  و 03100",0]
[null,null,null,{"$f":"H20*F20","v":0},null,null,null,null,null,0]
["3.1.1","100mm thick. plain concrete for foundation",null,{"$f":"F21*H21","v":0},null,null,"M3",null,"خرسانة عادية بسمك 100 مم  للاساسات","3.1.1"]
[null,null,null,{"$f":"H22*F22","v":0},null,null,null,null,null,0]
["3.1.2","Slab on grade and steps with thick.150 mm",null,{"$f":"F23*H23","v":0},null,null,"M3",null,"بلاطات وسلالم على الارض بسمك 150مم  شاملة الشدات","3.1.2"]
[null,"including formwork and steel reinforcement ( A252",null,null,null,null,null,null,"وشبكة حديد التسليح ( A252 WWF)",0]
[null,"WWF) ",null,null,null,null,null,null,null,0]
[null,null,null,{"$f":"H26*F26","v":0},null,null,null,null,null,0]
[null,null,null,0,null,null,null,null,null,0]
[null,null,null,0,null,null,null,null,null,0]
[null,null,null,0,null,null,null,null,null,0]
[null,null,null,0,null,null,null,null,null,0]
[null,null,null,0,null,null,null,null,null,0]
[null,null,null,0,null,null,null,null,null,0]
[null,null,null,0,null,null,null,null,null,0]
[null,null,null,0,null,null,null,null,null,0]
[null,"To Collection",null,{"$f":"SUM(D7:D34)","v":0},null,null,null,null,"المجموع المرحل",0]
[null,null,null,{"$f":"F36*H36","v":0},null,null,null,null,null,0]
[null,null,null,0,null,null,null,null,null,0]
[null,"CAST IN PLACE CONCRETE",null,0,null,null,null,null," الخرسانة المصبوبة فى الموقع",0]
[null,null,null,0,null,null,null,null,null,0]
[3.2,"Reinforced concrete cast insitu, 35 Mpa, for",null,0,null,null,null,null,"خرسانة مسلحة مصبوبة في الموقع قوة 35 ميجا باسكال",3.2]
[null,"under ground parts using type of cement as ",null,0,null,null,null,null,"للأجزاء السفلية تحت منسوب الأرض بإستخدام نوع أسمنت ",0]
[null,"per soil report recommendation andporholes,",null,0,null,null,null,null,"طبقا للتوصيات الواردة بتقرير فحص التربة والجسات",0]
[null,"price include forms , steel reinforcement as",null,0,null,null,null,null,"والسعر يشمل الشدات وحديد التسليح حسب مقاييس ASTM",0]
[null,"per standard ASTM A615 and all additional",null,0,null,null,null,null,"A615 وجميع الأعمال الإضافية شاملة المعاجة بالماء",0]
[null,"works including curing by water, tests and all ",null,0,null,null,null,null,"والإختبارات وكل ما يلزم طبقا للمواصفات من أعمال وذلك",0]
[null,"necessary, technical specifications, drawings ",null,0,null,null,null,null,"طبقا للمواصفات الفنية قسم 03100، 03200 ،03300",0]
[null,"and approval ofsupervising Engineer, ",null,0,null,null,null,null,null,0]
[null,"accordance with technical specifications ",null,0,null,null,null,null,null,0]
[null,"section 03100 & 03200 & 3300",null,0,null,null,null,null,null,0]
[null,null,null,0,null,null,null,null,null,0]
["3.2.1","For foundations ( Isolated footing)",null,{"$f":"F51*H51","v":0},null,null,"M3",null,"للاساسات قواعد منفصلة مسلحة ","3.2.1"]
[null,null,null,0,null,null,null,null,null,0]
["3.2.2","R.C for tie beam",null,{"$f":"F53*H53","v":0},null,null,"M3",null,"ميدة مسلحة رابطة للاساسات المنفصلة","3.2.2"]
[null,null,null,0,null,null,null,null,null,0]
[null,null,null,0,null,null,null,null,null,0]
[null,null,null,0,null,null,null,null,null,0]
[null,null,null,0,null,null,null,null,null,0]
[null,null,null,0,null,null,null,null,null,0]
[null,null,null,0,null,null,null,null,null,0]
[null,null,null,0,null,null,null,null,null,0]
[null,null,null,0,null,null,null,null,null,0]
[null,"To Collection",null,{"$f":"SUM(D36:D61)","v":0},null,null,null,null,"المجموع المرحل",0]
[null,null,null,{"$f":"F63*H63","v":0},null,null,null,null,null,0]
[null,null,null,0,null,null,null,null,null,0]
[null,"CAST IN PLACE CONCRETE",null,0,null,null,null,null," الخرسانة المصبوبة فى الموقع",0]
[null,null,null,0,null,null,null,null,null,0]
[3.3,"Insitu  reinforced concrete, 35 Mpa, ",null,0,null,null,null,null,"خرسانة مسلحة مصبوبة فى الموقع قوة 35 ميجاباسكال",3.3]
[null,"forstructure above ground level  by used ",null,0,null,null,null,null,"للأجزاء فوق منسوب الأرض باستخدام أسمنت نوع I والسعر",0]
[null,"cement Type I , price including formworks,",null,0,null,null,null,null,"يشمل الشدات وحديد التسليح حسب مقاييس ASTMA615 ",0]
[null,"and steel reinforcements conforming to",null,0,null,null,null,null,"وجميع الأعمال الإضافية شاملة المعالجة بالماء والاختبارات",0]
[null,"ASTMA615 and all additional works includes",null,0,null,null,null,null,"وكل ما يلزم طبقاً للمواصفات الفنيه قسم  03100، 03200",0]
[null,"water treatment and all testas specified on",null,0,null,null,null,null,"،03300  واعتماد المهندس المشرف.",0]
[null,"drawings and specifications section 03100 &",null,0,null,null,null,null,null,{"$f":"A73","v":0}]
[null,"03200 & 3300  and as per engineer's approved",null,0,null,null,null,null,null,0]
[null,null,null,0,null,null,null,null,null,0]
["3.3.1","Suspended slabs with thickness   as shown on",null,{"$f":"F76*H76","v":0},null,null,"M3",null,"البلاطات الخرسانية المعلقة بسمك طبقاً للمخططات","3.3.1"]
[null,"drawings",null,0,null,null,null,null,null,0]
[null,null,null,0,null,null,null,null,null,0]
["3.3.2","Beams  & parapets as shown on drawings",null,{"$f":"F79*H79","v":0},null,null,"M3",null,"الكمرات والدراوي طبقاً للمخططات","3.3.2"]
[null,null,null,0,null,null,null,null,null,0]
["3.3.3","Columns",null,{"$f":"F81*H81","v":0},null,null,"M3",null,"الأعمدة","3.3.3"]
[null,null,null,0]
[null,null,null,0]
[null,null,null,0]
[null,null,null,{"$f":"H85*F85","v":0}]
[null,null,null,0]
[null,null,null,0]
[null,null,null,0]
[null,"To Collection",null,{"$f":"SUM(D63:D88)","v":0},null,null,null,null,"المجموع المرحل"]
[null,null,null,{"$f":"F90*H90","v":0}]
[]
[null,"Precast concrete",null,{"$f":"H92*F92","v":0},null,null,null,null,"الخرسانة المسبقة الصب"]
[null,null,null,0]
[3.4,"Precast concrete splash block including fixing",null,0,null,null,null,null,"بلوكات خرسانية من الخرسانة المسبقة الصب لحماية جدران",{"$f":"A94","v":3.4}]
[null,"and all accessories for complete installation",null,0,null,null,null,null,"المبانى من المياه المصرفة من السطح شاملاً التثبيت",0]
[null,"as per detail on drawing",null,0,null,null,null,null,"والملحقات اللازمة لإكمال أعمال التركيب حسب المفصل",0]
[null,null,null,0,null,null,null,null,"بالمخططات",0]
[null,null,null,0,null,null,null,null,null,0]
["3.4.1","Precast concrete splash block including grouting ",null,{"$f":"F99*H99","v":0},null,null,"No",null,"مصد لطرطشة مياه الأمطار من الخرسانة سابقة الصب شاملاً","3.4.1"]
[null,null,null,0,null,null,null,null,"السقية ",0]
[null,null,null,0,null,null,null,null,null,0]
[null,null,null,0]
[null,null,null,0]
[null,null,null,0]
[null,null,null,0]
[null,null,null,0]
[null,null,null,0]
[null,null,null,0]
[null,null,null,0]
[null,null,null,0]
[null,null,null,0]
[null,null,null,0]
[null,null,null,0]
[null,null,null,0]
[null,null,null,0]
[null,"To Collection",null,{"$f":"SUM(D90:D115)","v":0},null,null,null,null,"المجموع المرحل"]
[null,null,null,{"$f":"F117*H117","v":0}]
[]
[null,"Total Summary",null,null,null,null,null,null,"إجمالى ملخص الأعمال"]
[]
[null,"Sheet - 01",null,{"$f":"D35","v":0},null,null,null,null,"صفحة - 01"]
[]
[null,"Sheet - 02",null,{"$f":"D62","v":0},null,null,null,null,"صفحة - 02"]
[]
[null,"Sheet - 03",null,{"$f":"D89","v":0},null,null,null,null,"صفحة - 03"]
[]
[null,"Sheet - 04",null,{"$f":"D116","v":0},null,null,null,null,"صفحة - 04"]
[]
[]
[]
[]
[]
[]
[]
[]
[]
[]
[]
[]
[]
[]
[]
[null,"To Bill Summary",null,{"$f":"SUM(D119:D142)","v":0},null,null,null,null,"المجموع المرحل إلى ملخص جدول الكميات"]

{"sheet":"Div.04","index":3,"n_rows":35,"n_cols":10,"rows_kept":35,"cut":false,"hidden":false,"merged":[[5,0,6,0],[5,1,6,1],[5,8,6,8],[5,9,6,9]]}
[]
[]
[]
[]
[]
["ITEM","DESCRIPTION","السعر الإجمالي كتابة","السعر الإجمالي رقمًا","السعر الإفرادي كتابة ","السعر الإفرادي رقماً","الوحدة","الكمية","الـــوصــــف","بند"]
[null,null,"Total in words (SR) ","Total in figures","Rate in figures","RATE","UNIT","QTY"]
[null,null,null,{"$f":"H8*F8","v":0}]
["4","DIVISION 4 - MASONRY ",null,{"$f":"H9*F9","v":0},null,null,null,null,"القسم الرابع : أعمال المباني ",{"$f":"A9","v":"4"}]
[null,null,null,0]
["4.1","Supply and install Concrete hollow blocks in",null,0,null,null,null,null,"توريد وتركيب وحدات بلوك خرسانية مفرغة تبنى على شكل","4.1"]
[null,"courses with cement mortar including  lintels",null,0,null,null,null,null,"مداميك مع مونة أسمنتية بما في ذلك الأعتاب فوق الفتحات"]
[null,"over openings, vertical and horizontal",null,0,null,null,null,null,"والتسليح الأفقي والرأسي ومواد التثبيت والحشو والاحكام"]
[null,"reinforcement, fixings, fillers, sealants, grout",null,0,null,null,null,null,"والملاط وكافة الأعمال ذات العلاقة طبقا للموضح"]
[null,"and all associated works as per drawings and",null,0,null,null,null,null,"بالمخططات وحسب المواصفات قسم 04200"]
[null,"as per specification section 04200",null,0]
[null,null,null,0]
["4.1.1","200 mm thick  concrete hollow blocks wall",null,{"$f":"F18*H18","v":0},null,null,"M2",null,"جدار من وحدات من البلوك الخرساني المفرغ  سمك  200مم","4.1.1"]
[null,null,null,0]
[null,null,null,0]
[null,null,null,0]
[null,null,null,0]
[null,null,null,0]
[null,null,null,0]
[null,null,null,0]
[null,null,null,0]
[null,null,null,0]
[null,null,null,0]
[null,null,null,0]
[null,null,null,0]
[null,null,null,0]
[null,null,null,0]
[null,null,null,0]
[null,null,null,0]
[null,"To Bill Summary",null,{"$f":"SUM(D7:D34)","v":0},null,null,null,null,"المجموع المرحل إلى ملخص جدول الكميات"]

{"sheet":"Div.05","index":4,"n_rows":35,"n_cols":10,"rows_kept":35,"cut":false,"hidden":false,"merged":[[5,0,6,0],[5,1,6,1],[5,8,6,8],[5,9,6,9]]}
[]
[]
[]
[]
[]
["ITEM","DESCRIPTION","السعر الإجمالي كتابة","السعر الإجمالي رقمًا","السعر الإفرادي كتابة ","السعر الإفرادي رقماً","الوحدة","الكمية","الـــوصــــف","بند"]
[null,null,"Total in words (SR) ","Total in figures","Rate in figures","RATE","UNIT","QTY"]
[null,null,null,{"$f":"H8*F8","v":0}]
["5","DIVISION 5 - METALS",null,{"$f":"H9*F9","v":0},null,null,null,null,"القسم الخامس - الأعمال المعدنية",{"$f":"A9","v":"5"}]
[null,null,null,0]
[null,"Metal Fabrication",null,0,null,null,null,null,"المصنوعات المعدنية"]
[null,null,null,0]
["5.1","Supply and install proprietary galvanized steel",null,0,null,null,null,null,"توريد وتركيب سلالم للصعود الي السطح من الحديد المجلفن","5.1"]
[null,"access ladder with suitable height as per",null,0,null,null,null,null,"وبالارتفاع المناسب حسب التفصيلة 2 بالمخطط "]
[null,"detail 2 on drawing GA-002 and",null,0,null,null,null,null,"GA-002 والمواصفات قسم 05500"]
[null,"specification Section 05500",null,0]
[null,null,null,0]
["5.1.1"," Glavnized steel Ladder  for roof",null,0,null,null,"No.",null,"سلم صعود  للسطح  من الحديد المجلفن ","5.1.1"]
[null,null,null,0]
[null,null,null,0]
[null,null,null,0]
[null,null,null,0]
[null,null,null,0]
[null,null,null,0]
[null,null,null,0]
[null,null,null,0]
[null,null,null,0]
[null,null,null,0]
[null,null,null,0]
[null,null,null,0]
[null,null,null,0]
[null,null,null,0]
[null,null,null,0]
[null,null,null,0]
[null,"To Bill Summary",null,{"$f":"SUM(D7:D34)","v":0},null,null,null,null,"المجموع المرحل إلى ملخص جدول الكميات"]

{"sheet":"Div.06","index":5,"n_rows":35,"n_cols":10,"rows_kept":35,"cut":false,"hidden":false,"merged":[[5,0,6,0],[5,1,6,1],[5,8,6,8],[5,9,6,9]]}
[]
[]
[]
[]
[]
["ITEM","DESCRIPTION","السعر الإجمالي كتابة","السعر الإجمالي رقمًا","السعر الإفرادي كتابة ","السعر الإفرادي رقماً","الوحدة","الكمية","الـــوصــــف","بند"]
[null,null,"Total in words (SR) ","Total in figures","Rate in figures","RATE","UNIT","QTY"]
[]
["6","DIVISON 6 - WOOD AND PLASTIC",null,{"$f":"H9*F9","v":0},null,null,null,null,"القسم السادس - أعمال الخشب والبلاستيك ",{"$f":"A9","v":"6"}]
[null,null,null,{"$f":"H10*F10","v":0}]
[null,"KITCHEN CABINETS",null,0,null,null,null,null,"خزائن المطبخ"]
[null,null,null,0]
[6.1,"Supply & Install wood storage unit \"floor\" including",null,0,null,null,"M",null,"توريد وتركيب وحدة تخزين سفلية (اسفل حوض المطبخ) من",6.1]
[null,"shelves and accessories according to drawing and",null,0,null,null,null,null,"الخشب شاملة الارفف حسب المخططات والمواصفات قسم"]
[null,"specification section 06400",null,0,null,null,null,null,"06400"]
[null,null,null,0]
[null,null,null,0]
[null,null,null,0]
[null,null,null,0]
[null,null,null,0]
[null,null,null,0]
[null,null,null,0]
[null,null,null,0]
[null,null,null,0]
[null,null,null,0]
[null,null,null,0]
[null,null,null,0]
[null,null,null,0]
[null,null,null,0]
[null,null,null,0]
[null,null,null,0]
[null,null,null,0]
[null,null,null,0]
[]
[null,"To Bill Summary",null,{"$f":"SUM(D7:D34)","v":0},null,null,null,null,"المجموع المرحل إلى ملخص جدول الكميات"]

{"sheet":"Div.07","index":6,"n_rows":87,"n_cols":10,"rows_kept":87,"cut":false,"hidden":false,"merged":[[5,0,6,0],[5,1,6,1],[5,8,6,8],[5,9,6,9]]}
[]
[]
[]
[]
[]
["ITEM","DESCRIPTION","السعر الإجمالي كتابة","السعر الإجمالي رقمًا","السعر الإفرادي كتابة ","السعر الإفرادي رقماً","الوحدة","الكمية","الـــوصــــف","بند"]
[null,null,"Total in words (SR) ","Total in figures","Rate in figures","RATE","UNIT","QTY"]
[]
["07","DIVISION 7 - THERMAL AND MOISTURE",null,null,null,null,null,null,"القسم السابع - الوقأية من الرطوبة والحرارة",{"$f":"A9","v":"07"}]
[null,"PROTECTION"]
[null,null,null,{"$f":"H11*F11","v":0}]
[7.1,"Supply and install Damp proofing as per",null,null,null,null,null,null,"توريد وتنفيذ طبقة مانع الرطوبة حسب المواصفات الفنية",7.1]
[null,"specifications section 07150",null,null,null,null,null,null,"قسم 07150"]
[]
["7.1.1","two coats of bituminous coatings onto surfaces of",null,{"$f":"F15*H15","v":0},null,null,"M2",null,"دهان طبقتين من الغطاء البيتوميني علي اسطح الخرسانة","7.1.1"]
[null,"concrete in contact with soil as per engineer's",null,null,null,null,null,null,"المتصلة بالتربة حسب تعليمات المهندس المشرف "]
[null,"instructions "]
[null,null,null,{"$f":"H18*F18","v":0}]
[7.2,"Vapour barrier as per specification",null,null,null,null,null,null,"أغشية حجز الرطوبة حسب المواصفات القسم 07100",7.2]
[null,"section 07100 "]
[]
["7.2.1","Vapour barrier to underside of slabs, beds, and the",null,{"$f":"F22*H22","v":0},null,null,"M2",null,"غشاء حجز الرطوبة في اسفل البلاطات، الفرشات وما شابه ","7.2.1"]
[null,"like,all as per on drawing and specifications",null,{"$f":"H23*F23","v":0},null,null,null,null,"ذلك حسب الموضح بالمخطط بالمواصفات الفنية "]
[null,null,null,{"$f":"H24*F24","v":0}]
[7.3,"Waterproofing and moisture protection as per ",null,null,null,null,null,null,"العزل المائي و الوقاية من الرطوبة حسب المواصفات القسم",{"$f":"A25","v":7.3}]
[null,"specification section 07100",null,null,null,null,null,null,"07100"]
[]
["7.3.1","Membrane waterproofing laid in floors in \"wet room\"",null,{"$f":"F28*H28","v":0},null,null,"M²",null,"غشاء عزل من الماء في مناطق الغرف الرطبة شاملا لفه",{"$f":"A28","v":"7.3.1"}]
[null,"areas including upturn to abutting walls or",null,null,null,null,null,null,"لأعلى ومده عند الأركان "]
[null,"upstands "]
[]
[null,null,null,{"$f":"H32*F32","v":0},null,null,null,null,null,{"$f":"A32","v":0}]
[null,null,null,0,null,null,null,null,null,0]
[null,null,null,0,null,null,null,null,null,0]
[null,"To Collection",null,{"$f":"SUM(D7:D34)","v":0},null,null,null,null,"المجموع المرحل",0]
[null,null,null,{"$f":"F36*H36","v":0},null,null,null,null,null,0]
[null,null,null,0,null,null,null,null,null,0]
[null,"Roofing System",null,0,null,null,null,null,"نظام تغطية الأسطح",0]
[null,null,null,0,null,null,null,null,null,0]
[7.2,"Roofing system comprising gravel layer",null,null,null,null,null,null,"نظام تغطية الأسطح يتألف من طبقة من الزلط ، فاصل ،عازل",7.2]
[null,"separation sheet, rigid insulation,",null,null,null,null,null,null,"صلب وغشاء عازل للمياه وفرشة خرسانية لتشكيل الميول",0]
[null,"waterproofing membrane and concrete screed",null,null,null,null,null,null,"للصرف شاملا بلاطات خرسانية سابقة الصب حيثما يطلب",0]
[null,"to form slope to drain, including precast tiles",null,null,null,null,null,null,"الامر ذلك لممرات الصيانة حيثما طلبت مع تشكيل المثلث",0]
[null,"where occur for maintenance walks, forming",null,null,null,null,null,null,"الركني للفرشة عند الأركان ومد الغشاء العازل للمياه لأعلى",0]
[null,"of cant strips, and waterproofing membrane",null,null,null,null,null,null,"الحشوه المعدنيه ومواد الاحكام والتثبيت الكل حسب التفصيلة",0]
[null,"base flashing, metal flashing, sealants and",null,null,null,null,null,null,"1 بالمخطط GA-001 والمواصفات الفنية",0]
[null,"fixings, steel fabrications, all as per detail 1 on",null,null,null,null,null,null,"07500",0]
[null,"drawing GA-001 and specifications",null,null,null,null,null,null,null,0]
[null,"07500",null,null,null,null,null,null,null,0]
[]
["7.2.1","To suit roof area",null,{"$f":"F51*H51","v":0},null,null,"M2",null,"لزوم منطقة السطح",{"$f":"A51","v":"7.2.1"}]
[null,null,null,0]
[null,null,null,0]
[null,null,null,0]
[null,null,null,0]
[null,null,null,0]
[null,null,null,0]
[null,null,null,0]
[null,null,null,0]
[null,null,null,0]
[null,"To Collection",null,{"$f":"SUM(D36:D60)","v":0},null,null,null,null,"المجموع المرحل"]
[null,null,null,{"$f":"F62*H62","v":0}]
[]
[null,"Total Summary",null,null,null,null,null,null,"إجمالى ملخص الأعمال"]
[]
[null,"Sheet - 01",null,{"$f":"D35","v":0},null,null,null,null,"صفحة - 01"]
[]
[null,"Sheet - 02",null,{"$f":"D61","v":0},null,null,null,null,"صفحة - 02"]
[]
[]
[]
[null,null,null,{"$f":"D46","v":0}]
[]
[]
[]
[]
[]
[]
[]
[]
[]
[]
[]
[]
[]
[]
[null,"To Bill Summary",null,{"$f":"SUM(D64:D86)","v":0},null,null,null,null,"المجموع المرحل إلى ملخص جدول الكميات"]

{"sheet":"Div.08","index":7,"n_rows":116,"n_cols":10,"rows_kept":116,"cut":false,"hidden":false,"merged":[[5,0,6,0],[5,1,6,1],[5,8,6,8],[5,9,6,9]]}
[]
[]
[]
[]
[]
["ITEM","DESCRIPTION","السعر الإجمالي كتابة","السعر الإجمالي رقمًا","السعر الإفرادي كتابة ","السعر الإفرادي رقماً","الوحدة","الكمية","الـــوصــــف","بند"]
[null,null,"Total in words (SR) ","Total in figures","Rate in figures","RATE","UNIT","QTY"]
[]
["8","DIVISION 8 - DOORS AND WINDOWS",null,{"$f":"H9*F9","v":0},null,null,null,null,"القسم الثامن - الأبواب والنوافذ",{"$f":"A9","v":"8"}]
[null,null,null,{"$f":"H10*F10","v":0},null,null,null,null,null,0]
[null,"All doors including hardware, saddle, fixings,",null,{"$f":"H11*F11","v":0},null,null,null,null,"جميع الأبواب تشتمل على الخردوات والعتبات والتثبيت",0]
[null,"decorations and the like, as detailed on drawings",null,0,null,null,null,null,"الموضح والتشطيب والحليات وأعمال التزيين وكافة ما يلزم",0]
[null,"and specification ",null,0,null,null,null,null,"حسب بالمخططات والمواصفات ليناسب فتحات المبانى",0]
[null,null,null,0,null,null,null,null,null,0]
[8.1,"Aluminum Doors",null,0,null,null,null,null,"الأبواب الألومنيوم",8.1]
[null,null,null,0,null,null,null,null,null,0]
["8.1.1","Supply and install bronze anodised aluminum",null,0,null,null,null,null,"توريد وتركيب باب مفصلى من الألومنيوم المؤند (برونز) مع","8.1.1"]
[null,"hinged doors with glass vision, on anodized",null,0,null,null,null,null,"شراعة زجاجية على إطارمن الألومنيوم المؤند والبند يشمل",0]
[null,"aluminum frames including hardware,fixing,",null,0,null,null,null,null,"الخردوات والتركيب ومواد الحشو ومواد الإحكام والشرائح",0]
[null,"packings, sealants, weather strippings and the",null,0,null,null,null,null,"الصادة للرياح والمطر وما شابه ذلك حسب الموضح",0]
[null,"like as described on drawing",null,0,null,null,null,null,"بالمخططات B05-AR-02 ليناسب فتحات المبانى طبقا",0]
[null,"B05-AR-02 to suit open and specs",null,0,null,null,null,null,"للمواصفات قسم 08120 و 08800 و08710",0]
[null,"section 08120 &08800&08710",null,0,null,null,null,null,null,0]
[null,null,null,0,null,null,null,null,null,0]
["8.1.1.1","Aluminum door, size 900x2200 mm for entrance",null,{"$f":"F25*H25","v":0},null,null,"No.",null,"باب الومنيوم مقاس 900×2200 مم، لزوم باب المدخل، ","8.1.1.1"]
[null,"type D1",null,0,null,null,null,null,"نموذج D1",0]
[null,null,null,0,null,null,null,null,null,0]
["8.1.1.2","Aluminum door, size 800x2200 mm, type D3",null,{"$f":"F28*H28","v":0},null,null,"No.",null,"باب الومنيوم مقاس 800×2200 مم، نموذج D3","8.1.1.2"]
[null,null,null,0,null,null,null,null,null,0]
[null,null,null,0,null,null,null,null,null,0]
[null,null,null,0,null,null,null,null,null,0]
[null,null,null,0,null,null,null,null,null,0]
[null,null,null,0,null,null,null,null,null,0]
[null,null,null,0,null,null,null,null,null,0]
[null,"To Collection",null,{"$f":"SUM(D7:D34)","v":0},null,null,null,null,"المجموع المرحل",0]
[null,null,null,{"$f":"F36*H36","v":0},null,null,null,null,null,0]
[null,null,null,0,null,null,null,null,null,0]
[8.1999999999999993,"Wood Doors",null,0,null,null,null,null,"الأبواب الخشبية"]
[null,null,null,0,null,null,null,null,null,{"$f":"A39","v":0}]
["8.2.1","Supply and install 44mm thk. Solid core",null,0,null,null,null,null,"توريد وتركيب أبواب من الخشب المصمت سمك 44مم شامل ","8.2.1"]
[null,"wooden doors with including frame and",null,0,null,null,null,null,"الإطار وجميع الخردوات اللازمة طبقا للرسومات ",0]
[null,"hardware set all as per drawings ",null,0,null,null,null,null,"B05-AR-02 والمواصفات قسم 08210و08710.",0]
[null,"B05-AR-02 specifications section: 08210",null,0,null,null,null,null,null,0]
[null,"& 08710  ",null,0,null,null,null,null,null,0]
[null,null,null,0,null,null,null,null,null,0]
["8.2.1.1","Wood door, size 800x2200 mm,model D2",null,{"$f":"F46*H46","v":0},null,null,"No.",null,"باب خشب  مقاس 800×2200 مم، نموذج D2","8.2.1.1"]
[null,null,null,0,null,null,null,null,null,0]
[null,null,null,0,null,null,null,null,null,0]
[null,null,null,0,null,null,null,null,null,0]
[null,null,null,0,null,null,null,null,null,0]
[null,null,null,0,null,null,null,null,null,0]
[null,null,null,0,null,null,null,null,null,0]
[null,null,null,0,null,null,null,null,null,0]
[null,null,null,0,null,null,null,null,null,0]
[null,null,null,0,null,null,null,null,null,0]
[null,null,null,0,null,null,null,null,null,0]
[null,null,null,0,null,null,null,null,null,0]
[null,null,null,0,null,null,null,null,null,0]
[null,null,null,0]
[null,null,null,0]
[null,null,null,0,null,null,null,null,null,{"$f":"A61","v":0}]
[null,"To Collection",null,{"$f":"SUM(D36:D61)","v":0},null,null,null,null,"المجموع المرحل",{"$f":"A62","v":0}]
[null,null,null,{"$f":"F63*H63","v":0},null,null,null,null,null,{"$f":"A63","v":0}]
[null,null,null,{"$f":"H64*F64","v":0},null,null,null,null,null,{"$f":"A64","v":0}]
[8.3000000000000007,"Aluminum Windows",null,{"$f":"H65*F65","v":0},null,null,null,null,"الشبابيك الألومينوم",{"$f":"A65","v":8.3000000000000007}]
[null,null,null,0,null,null,null,null,null,0]
["8.3.1","Supply and install aluminum windows with",null,0,null,null,null,null,"توريد وتركيب شبابيك ألومنيوم مع زجاج، على إطار من","8.3.1"]
[null,"glass and on anodized aluminum frames",null,0,null,null,null,null,"الألومنيوم المؤند والبند يشمل الخردوات والتركيبات ومواد",0]
[null,"including hardware, fixing, packings, sealants,",null,0,null,null,null,null,"الحشو ومواد الإحكام والشرائح الصادة للرياح والمطر وما",0]
[null,"weather strippings and the like as described",null,0,null,null,null,null,"شابه ذلك حسب الموضح بالمخطط B05-AR-02 ليناسب",0]
[null,"on drawing B05-AR-02 to suit open and",null,0,null,null,null,null,"فتحات المباني والمواصفات قسم 08800 و08710و",0]
[null,"specs section 08520 &08800&08710",null,0,null,null,null,null,"08520",0]
[null,null,null,0,null,null,null,null,null,{"$f":"A73","v":0}]
["8.3.1.1","Aluminum sliding window, size 2000x1200mm,",null,{"$f":"F74*H74","v":0},null,null,"No.",null,"شباك الومنيوم مقاس 2000×1200 مم، منزلق ضلفتين مع",{"$f":"A74","v":"8.3.1.1"}]
[null,"double leaves, with movable fly mesh, type W01",null,{"$f":"H75*F75","v":0},null,null,null,null,"شبكة حماية متحركة للحشرات، نموذج W01",0]
[null,null,null,0,null,null,null,null,null,0]
["8.3.1.2","Aluminum sliding window, size 2000x1200mm,",null,{"$f":"F77*H77","v":0},null,null,"No.",null,"شباك الومنيوم مقاس 2000×1200 مم، منزلق ضلفتين مع","8.3.1.2"]
[null,"double leaves with movable fly mesh, type W01`",null,0,null,null,null,null,"شبكة حماية متحركة للحشرات، نموذج `W01 (مزود بحديد",0]
[null,"(provided with protected steel) ",null,0,null,null,null,null,"حماية)",0]
[null,null,null,0,null,null,null,null,null,0]
["8.3.1.3","Aluminum tilting window, size750x800mm, double",null,{"$f":"F81*H81","v":0},null,null,"No.",null,"شباك الومنيوم مقاس750×800 مم، قلاب ضلفتين مع شبكة","8.3.1.3"]
[null,"leaves with fixed fly mesh, type W02",null,0,null,null,null,null,"حماية ثابتة للحشرات، نموذج W02",0]
[null,null,null,0,null,null,null,null,null,0]
["8.3.1.4","Aluminum tilting window, size750x800mm, double",null,{"$f":"F84*H84","v":0},null,null,"No.",null,"شباك الومنيوم مقاس750×800 مم، قلاب ضلفتين مع شبكة","8.3.1.4"]
[null,"leaves with fixed fly mesh, type W02` (provided",null,0,null,null,null,null,"حماية ثايتة للحشرات نموذج `W02 ( مزود بحديد حماية)"]
[null,"with protected steel) ",null,0]
[]
[null,null,null,{"$f":"H88*F88","v":0}]
[null,"To Collection",null,{"$f":"SUM(D63:D88)","v":0},null,null,null,null,"المجموع المرحل"]
[null,null,null,{"$f":"F90*H90","v":0}]
[]
[null,"Total Summary",null,null,null,null,null,null,"إجمالى ملخص الأعمال"]
[]
[null,"Sheet - 01",null,{"$f":"D35","v":0},null,null,null,null,"صفحة - 01"]
[]
[null,"Sheet - 02",null,{"$f":"D62","v":0},null,null,null,null,"صفحة - 02"]
[]
[null,"Sheet - 03",null,{"$f":"D89","v":0},null,null,null,null,"صفحة - 03"]
[]
[null,null,null,{"$f":"D74","v":0}]
[]
[]
[]
[]
[]
[]
[]
[]
[]
[]
[]
[]
[]
[]
[]
[null,"To Bill Summary",null,{"$f":"SUM(D92:D115)","v":0},null,null,null,null,"المجموع المرحل إلى ملخص جدول الكميات"]

{"sheet":"Div.09","index":8,"n_rows":170,"n_cols":10,"rows_kept":170,"cut":false,"hidden":false,"merged":[[5,0,6,0],[5,1,6,1],[5,8,6,8],[5,9,6,9]]}
[]
[]
[]
[]
[]
["ITEM","DESCRIPTION","السعر الإجمالي كتابة","السعر الإجمالي رقمًا","السعر الإفرادي كتابة ","السعر الإفرادي رقماً","الوحدة","الكمية","الـــوصــــف","بند"]
[null,null,"Total in words (SR) ","Total in figures","Rate in figures","RATE","UNIT","QTY"]
[]
["9","DIVISION 9 - FINISHES",null,{"$f":"H9*F9","v":0},null,null,null,null,"القسم التاسع - أعمال التشطيبات",{"$f":"A9","v":"9"}]
[null,null,null,{"$f":"H10*F10","v":0},null,null,null,null,null,0]
[null,"INTERNAL FINISHES:",null,{"$f":"H11*F11","v":0},null,null,null,null,"أعمال التشطيبات الداخلية: ",0]
[null,null,null,0,null,null,null,null,null,0]
[9.1,"Floors, including fixings, sand- cementbacking",null,0,null,null,null,null,"التشطيبات : الأرضيات شاملة التركيب ومونة اللصق من ",9.1]
[null,"mortar, grout and adhesive as  shown on",null,0,null,null,null,null,"الاسمنت والرمل مع السقية حسب الموضح بالمخططات ",0]
[null,"drawings and specification 09310",null,0,null,null,null,null,"والمواصفات قسم 09310",0]
[null,null,null,0,null,null,null,null,null,0]
["9.1.1","Supply and install ceramic tiles 400 x 400 x 8 mm",null,{"$f":"F17*H17","v":0},null,null,"M2",null,"توريد وتركيب بلاط سيراميك 400×400× 8 مم لزوم","9.1.1"]
[null,"for floors",null,0,null,null,null,null,"الأرضيات",0]
[null,null,null,0,null,null,null,null,null,0]
["9.1.2","Supply and install ceramic tiles 300 x 300 x 8 mm",null,{"$f":"F20*H20","v":0},null,null,"M2",null,"توريد وتركيب بلاط سيراميك 300×300× 8 مم لزوم","9.1.2"]
[null,"for floors",null,0,null,null,null,null,"الأرضيات",0]
[null,null,null,0,null,null,null,null,null,0]
[9.1999999999999993,"Finishing : bases including sand-cement",null,null,null,null,null,null,"التشطيبات : الوزرات شاملا مونة اللصق من الاسمنت ",9.1999999999999993]
[null,"backing mortar and grout",null,null,null,null,null,null,"والرمل مع السقية",0]
[null,null,null,null,null,null,null,null,null,0]
["9.2.1","Supply and apply ceramic base 100mm high",null,{"$f":"F26*H26","v":0},null,null,"M",null,"توريد وعمل وزرة  سيراميك بارتفاع 100مم","9.2.1"]
[null,null,null,null,null,null,null,null,null,0]
[null,null,null,{"$f":"H28*F28","v":0},null,null,null,null,null,0]
[null,null,null,0,null,null,null,null,null,0]
[null,null,null,{"$f":"H30*F30","v":0},null,null,null,null,null,{"$f":"A30","v":0}]
[null,null,null,{"$f":"H31*F31","v":0},null,null,null,null,null,{"$f":"A31","v":0}]
[null,null,null,{"$f":"H32*F32","v":0},null,null,null,null,null,{"$f":"A32","v":0}]
[null,null,null,0,null,null,null,null,null,0]
[null,null,null,0,null,null,null,null,null,0]
[null,"To Collection",null,{"$f":"SUM(D7:D34)","v":0},null,null,null,null,"المجموع المرحل",0]
[null,null,null,{"$f":"F36*H36","v":0},null,null,null,null,null,0]
[null,null,null,0,null,null,null,null,null,0]
[null,"INTERNAL FINISHES:",null,0,null,null,null,null,"أعمال التشطيبات الداخلية: ",0]
[null,null,null,0,null,null,null,null,null,0]
[9.3000000000000007,"Finishings : cement plaster including ",null,0,null,null,null,null,"التشطيبات: لياسة أسمنتية تشتمل على أفاريز الزاوية",9.3000000000000007]
[null,"metal angle beads and lathing at junctions of ",null,0,null,null,null,null,"المعدنية وشبك الشرائح المعدنية للوصلات المتلاقية والسقية",0]
[null,"differing grounds as per drawings and",null,0,null,null,null,null,"للتشطيبات المختلفة حسب المخططات والمواصفات قسم",0]
[null,"specification 09200",null,0,null,null,null,null,"09200",0]
[null,null,null,0,null,null,null,null,null,0]
["9.3.1","Supply and apply cement plaster for internal walls",null,{"$f":"F45*H45","v":0},null,null,"M2",null,"توريد وعمل لياسة أسمنتية لزوم الحوائط الداخلية","9.3.1"]
[null,null,null,0,null,null,null,null,null,0]
["9.3.2","Supply and apply cement plaster for internal",null,{"$f":"F47*H47","v":0},null,null,"M2",null,"توريد وعمل لياسة أسمنتية للأسقف الداخلية","9.3.2"]
[null,"ceilings",null,0,null,null,null,null,null,0]
[null,null,null,0,null,null,null,null,null,0]
[null,null,null,0,null,null,null,null,null,0]
[null,null,null,0,null,null,null,null,null,0]
[null,null,null,0,null,null,null,null,null,0]
[null,null,null,0,null,null,null,null,null,0]
[null,null,null,0,null,null,null,null,null,0]
[null,null,null,0,null,null,null,null,null,0]
[null,null,null,0,null,null,null,null,null,0]
[null,null,null,0,null,null,null,null,null,0]
[null,null,null,0,null,null,null,null,null,0]
[null,null,null,0,null,null,null,null,null,0]
[null,null,null,0,null,null,null,null,null,0]
[null,null,null,0,null,null,null,null,null,0]
[null,"To Collection",null,{"$f":"SUM(D36:D61)","v":0},null,null,null,null,"المجموع المرحل",0]
[null,null,null,{"$f":"F63*H63","v":0},null,null,null,null,null,0]
[null,null,null,0,null,null,null,null,null,0]
[null,"INTERNAL FINISHES:",null,0,null,null,null,null,"أعمال التشطيبات الداخلية: ",0]
[null,null,null,0,null,null,null,null,null,0]
[9.4,"Finishings : Walls, including surface ",null,0,null,null,null,null,"التشطيبات : الجدران تشتمل على تجهيز الأسطح حسب ",9.4]
[null,"preparation as shown on drawings and",null,0,null,null,null,null,"الموضح بالمخططات والمواصفات قسم 09900",0]
[null,"specification 09900",null,0,null,null,null,null,null,0]
[null,null,null,0,null,null,null,null,null,0]
["9.4.1","Supply and apply, emulsion paint on plaster, ",null,{"$f":"F71*H71","v":0},null,null,"M2",null,"توريد وطلاء دهان بلاستيك علي لياسة أسمنتية للحوائط ","9.4.1"]
[null,"(Cement plaster is measured elsewhere)",null,0,null,null,null,null,"الداخلية، (اللياسة الأسمنتية مقاسة في موضع اخر)",0]
[null,null,null,0,null,null,null,null,null,{"$f":"A73","v":0}]
["9.4.2","Supply and apply , emulsion paint on plaster for ",null,{"$f":"F74*H74","v":0},null,null,"M2",null,"توريد وطلاء دهان بلاستيك علي لياسة أسمنتية للأسقف","9.4.2"]
[null,"internal ceilings, (Plaster is measured elsewhere)",null,0,null,null,null,null,"الداخلية، (اللياسة الاسمنتية مقاسة بمكان أخر)",0]
[null,null,null,0,null,null,null,null,null,0]
[9.5,"Walls, including fixings, sand-cementbacking ",null,0,null,null,null,null,"التشطيبات : الجدران شاملة التركيب ومونة اللصق من ",9.5]
[null,"mortar, grout and adhesive as shown on ",null,0,null,null,null,null,"الاسمنت والرمل مع السقية حسب الموضح بالمخططات  ",0]
[null,"drawings and specification 09310",null,0,null,null,null,null,"والمواصفات قسم 09310",0]
[null,null,null,0,null,null,null,null,null,0]
["9.5.1","Supply and install ceramic tiles 200 x 200 x 6 mm",null,{"$f":"F81*H81","v":0},null,null,"M2",null,"توريد وتركيب بلاطات سيراميك200×200× 6 مم","9.5.1"]
[null,null,null,0,null,null,null,null,null,0]
[null,null,null,0,null,null,null,null,null,0]
[null,null,null,{"$f":"H84*F84","v":0},null,null,null,null,null,{"$f":"A84","v":0}]
[null,null,null,{"$f":"H85*F85","v":0},null,null,null,null,null,{"$f":"A85","v":0}]
[null,null,null,0,null,null,null,null,null,0]
[null,null,null,0,null,null,null,null,null,0]
[null,null,null,0,null,null,null,null,null,0]
[null,"To Collection",null,{"$f":"SUM(D63:D88)","v":0},null,null,null,null,"المجموع المرحل",0]
[null,null,null,{"$f":"F90*H90","v":0},null,null,null,null,null,0]
[null,null,null,{"$f":"H91*F91","v":0},null,null,null,null,null,0]
[null,"EXTERNAL FINISHES:",null,0,null,null,null,null,"أعمال التشطيبات الخارجية: ",0]
[null,null,null,0,null,null,null,null,null,0]
[9.6,"Finishings : Walls, plastering including metal ",null,0,null,null,null,null,"التشطيبات : الجدران واللياسة تشتمل على أفاريز الزاوية ",9.6]
[null,"angle beads and lathing at junctions of",null,0,null,null,null,null,"المعدنية وشبك الشرائح المعدنية للوصلات المتلاقية والسقية ",0]
[null,"differing grounds, grout and adhesive as",null,0,null,null,null,null,"للتشطيبات المختلفة حسب الموضح بالمخططات ",0]
[null,"shown on drawings and specification 09200",null,{"$f":"H97*F97","v":0},null,null,null,null,"والمواصفات قسم 09200",0]
[null,null,null,0,null,null,null,null,null,0]
["9.6.1","Supply and apply cement plaster to suit facades",null,{"$f":"F99*H99","v":0},null,null,"M2",null,"توريد وعمل لياسة أسمنتية لزوم الواجهات الخارجية","9.6.1"]
[null,"hight to suit facades",null,0,null,null,null,null,null,0]
[null,null,null,0,null,null,null,null,null,0]
[9.6999999999999993,"Finishing: Walls including surface preparation",null,0,null,null,null,null,"التشطيبات : الجدران تشتمل على تجهز الأسطح حسب ",9.6999999999999993]
[null,"as shown on draiwngs and specificaitons",null,0,null,null,null,null,"الموضح بالمخططات والمواصفات قسم 09900 ",0]
[null,9900,null,0,null,null,null,null,null,0]
[null,null,null,0,null,null,null,null,null,0]
["9.7.1","Paint on cement plaster to suit facades(Plaster is",null,{"$f":"F106*H106","v":0},null,null,"M2",null,"توريد وعمل دهان على لياسة أسمنتية لزوم الواجهات","9.7.1"]
[null,"measured elsewhere)",null,0,null,null,null,null,"الخارجية (اللياسة الاسمنتية مقاسة بمكان أخر)",0]
[null,null,null,0,null,null,null,null,null,0]
[9.8000000000000007,"Walls including including fixings, sand-cement",null,0,null,null,null,null,"التشطيبات: الجدران شاملة التركيب ومونة اللصق من",9.8000000000000007]
[null,"backing mortar, grout and adhesive and all",null,0,null,null,null,null,"الاسمنت والرمل ومواد اللصق وكل مايلزم حسب الموضح",0]
[null,"required as shown on drawings and",null,0,null,null,null,null,"بالمخططات والمواصفات قسم 09600",0]
[null,"specifications 09600",null,0,null,null,null,null,null,0]
[null,null,null,0,null,null,null,null,null,0]
["9.8.1","Supply and install granite base cladding 1150mm",null,{"$f":"F114*H114","v":0},null,null,"M2",null,"توريد وتركيب تكسية من الجرانيت بارتفاع 1150مم","9.8.1"]
[null,"hight to suit facades ",null,0,null,null,null,null,null,0]
[null,"To Collection",null,{"$f":"SUM(D90:D115)","v":0},null,null,null,null,"المجموع المرحل",0]
[null,null,null,{"$f":"F117*H117","v":0},null,null,null,null,null,0]
[null,null,null,0,null,null,null,null,null,0]
[null,"EXTERNAL FINISHES:",null,0,null,null,null,null,"أعمال التشطيبات الخارجية: ",0]
[null,null,null,0,null,null,null,null,null,0]
[9.9,"Supply and fix granite steps the tread 30mm thick",null,{"$f":"F121*H121","v":0},null,null,"M",null,"توريد وتركيب درج من الجرانيت الأحمر للنائمة سمك 40مم ",9.9]
[null,null,null,0,null,null,null,null,"من عينة معتمدة للسلالم ",0]
[null,null,null,0,null,null,null,null,null,0]
["9.10","Supply and fix beige marble steps  the riser 20mm",null,{"$f":"F124*H124","v":0},null,null,"M",null,"توريد وتركيب درج من الرخام البيج للقائمة سمك 20مم من","9.10"]
[null,"thick and 20mm thick",null,0,null,null,null,null,"عينة معتمدة للسلالم ",0]
[null,null,null,0,null,null,null,null,null,0]
[9.11,"Supply and install counter top of granite 30 mm",null,{"$f":"F127*H127","v":0},null,null,"M",null,"توريد وتركيب طاولة حوض المطبخ من الجرانيت سمك 30مم",9.11]
[null,"thick for kitchen basin (basin measured in ",null,0,null,null,null,null,"لتثبيت الوحدة (الوحدة مقاسة مع الأعمال الصحية) وإطار"]
[null,"plumbing works) and metal frame including",null,0,null,null,null,null,"معدني شامل التشطيب ومواد الحشو حسب المخططات"]
[null,"finishing and material filling shown on drawings and",null,0,null,null,null,null,"والمواصفات الفنية قسم 09600 "]
[null,"Specification section 09600",null,0]
[null,null,null,0]
[null,null,null,0]
[null,null,null,0]
[null,null,null,0]
[null,null,null,0]
[null,null,null,0]
[null,null,null,0]
[null,null,null,0]
[null,null,null,0]
[null,null,null,0]
[null,null,null,0]
[null,"To Collection",null,{"$f":"SUM(D117:D142)","v":0},null,null,null,null,"المجموع المرحل"]
[null,null,null,{"$f":"F144*H144","v":0}]
[]
[null,"Total Summary",null,null,null,null,null,null,"إجمالى ملخص الأعمال"]
[]
[null,"Sheet - 01",null,{"$f":"D35","v":0},null,null,null,null,"صفحة - 01"]
[]
[null,"Sheet - 02",null,{"$f":"D62","v":0},null,null,null,null,"صفحة - 02"]
[]
[null,"Sheet - 03",null,{"$f":"D89","v":0},null,null,null,null,"صفحة - 03"]
[]
[null,"Sheet - 04",null,{"$f":"D116","v":0},null,null,null,null,"صفحة - 04"]
[]
[null,"Sheet - 05",null,{"$f":"D143","v":0},null,null,null,null,"صفحة - 05"]
[]
[]
[]
[]
[]
[]
[]
[]
[]
[]
[]
[]
[]
[null,"To Bill Summary",null,{"$f":"SUM(D146:D169)","v":0},null,null,null,null,"المجموع المرحل إلى ملخص جدول الكميات"]

{"sheet":"Div.10","index":9,"n_rows":35,"n_cols":10,"rows_kept":35,"cut":false,"hidden":false,"merged":[[5,0,6,0],[5,1,6,1],[5,8,6,8],[5,9,6,9]]}
[]
[]
[]
[]
[]
["ITEM","DESCRIPTION","السعر الإجمالي كتابة","السعر الإجمالي رقمًا","السعر الإفرادي كتابة ","السعر الإفرادي رقماً","الوحدة","الكمية","الـــوصــــف","بند"]
[null,null,"Total in words (SR) ","Total in figures","Rate in figures","RATE","UNIT","QTY"]
[]
["10","DIVISION 10 -SPECIALTIES",null,{"$f":"H9*F9","v":0},null,null,null,null,"القسم العاشر - الأعمال الخاصة",{"$f":"A9","v":"10"}]
[null,null,null,{"$f":"H10*F10","v":0},null,null,null,null,null,0]
[null,"TOILET AND BATH ACCESSORIES",null,0,null,null,null,null,"لوازم الحمامات ودورات المياه",0]
[null,null,null,0,null,null,null,null,null,0]
["10.1","Supply and installation of following toilet and",null,0,null,null,null,null,"توريد وتركيب لوازم الحمامات ودورات المياه التالية حسب","10.1"]
[null,"bath accessories as per schedule including",null,0,null,null,null,null,"جدول الاختيار شاملا ذلك مواد التثبيت والتزيين حسب",0]
[null,"fixings and trims as shown on drawing",null,0,null,null,null,null,"الموضح بالمخطط B05-AR-03 والمواصفات",0]
[null,"B05-AR-03 and specification section",null,0,null,null,null,null,"القسم 10800",0]
[null,"10800 ",null,0]
[null,null,null,0]
["10.1.1","Ref. (SWA1) Wall - mounted soap dispenser",null,0,null,null,"No.",null,"مرجع (SWA1) ماكينة صابون سائل حائطية","10.1.1"]
[null,null,null,0,null,null,null,null,null,0]
["10.1.2","Ref. (SWA2) Hand dryer",null,0,null,null,"No.",null,"مرجع (SWA2) مجفف اليد","10.1.2"]
[null,null,null,0,null,null,null,null,null,0]
["10.1.3","Ref. (SWA3) mirror with bevelled edges, ",null,0,null,null,"No.",null,"مرجع (SWA3) مرآة شفافة مقاس 400×600مم","10.1.3"]
[null,"size 400 x 600 mm",null,0]
[null,null,null,0]
["10.1.4","Ref .(SWA4) Toilet roll holder",null,0,null,null,"No.",null,"مرجع (SWA4) وراقة","10.1.4"]
[null,null,null,0,null,null,null,null," ",0]
["10.1.5","Ref. (SWA5) Hand spray with flexible hose and",null,0,null,null,"No.",null,"مرجع (SWA5) شطاف يد مع خرطوم مرن وخطاف على","10.1.5"]
[null,"wall hook",null,0,null,null,null,null,"الحائط "]
[null,null,null,0]
["10.1.6","Ref. (SWA6) Vitreous china toilet brush holder",null,0,null,null,"No.",null,"مرجع (SWA6) فرشاة تنظيف المرحاض","10.1.6"]
[null,null,null,0]
[null,null,null,0]
[]
[null,"To Bill Summary",null,{"$f":"SUM(D7:D34)","v":0},null,null,null,null,"المجموع المرحل إلى ملخص جدول الكميات"]

{"sheet":"Div.15a","index":10,"n_rows":197,"n_cols":10,"rows_kept":197,"cut":false,"hidden":false,"merged":[[5,0,6,0],[5,1,6,1],[5,8,6,8],[5,9,6,9]]}
[]
[]
[]
[]
[]
["ITEM","DESCRIPTION","السعر الإجمالي كتابة","السعر الإجمالي رقمًا","السعر الإفرادي كتابة ","السعر الإفرادي رقماً","الوحدة","الكمية","الـــوصــــف","بند"]
[null,null,"Total in words (SR) ","Total in figures","Rate in figures","RATE","UNIT","QTY"]
[]
["15a","DIVISION 15A - MECHANICAL",null,{"$f":"H9*F9","v":0},null,null,null,null,"القسم الخامس عشر (15أ)  - الأعمال الميكانيكية","15a"]
[null,null,null,{"$f":"H10*F10","v":0}]
[null,"PLUMBING INSTALLATIONS",null,{"$f":"H11*F11","v":0},null,null,null,null," أعمال السباكة"]
[null,null,null,0,null,null,null,null,null,{"$f":"A12","v":0}]
["15a.1","Supply, install sanitary wares and fixtures",null,0,null,null,null,null,"توريد وتركيب الأدوات والاجهزة الصحية  بما في ذلك","15a.1"]
[null,"including traps, spouts, valves and short",null,0,null,null,null,null,"المصائد  والانابيب والمحابس والمواسيرالقصيرة لأمداد",0]
[null,"lengths of water supply pipes, all fittings,",null,0,null,null,null,null,"المياه ,والملحقات والتركيبات اللازمة والحليات وماشابة",0]
[null,"accessories, trims and the like as on drawing",null,0,null,null,null,null,"حسب المخططات والمواصفات  قسم 15440 ",0]
[null,"and as per specification  section 15440",null,0,null,null,null,null,null,0]
[null,null,null,0,null,null,null,null,null,0]
["15a.1.1","Ref. LAV, Wall hung lavatory ",null,{"$f":"F19*H19","v":0},null,null,"No.",null,"مرجع (LAV)  حوض غسيل أيدي  مثبت على الحائط","15a.1.1"]
[null,null,null,0,null,null,null,null,null,0]
["15a.1.2","Ref. WC, Wall hung water closet with flush tank",null,{"$f":"F21*H21","v":0},null,null,"No.",null,"مرجع (WC) مرحاض مثبت في الجدار مع خزان طرد ","15a.1.2"]
[null,null,null,0,null,null,null,null,null,0]
["15a.1.3","Ref.KS, Single bowl stainless steel kitchen sink.",null,{"$f":"F23*H23","v":0},null,null,"No.",null,"مرجع (KS) حوض مطبخ بصفايه واحده","15a.1.3"]
[null,null,null,0,null,null,null,null,null,0]
["15a.1.4","Ref.SHO, Shower try.",null,{"$f":"F25*H25","v":0},null,null,"No.",null,"مرجع (SHO) حمام قدم من الخزف الصينى","15a.1.4"]
[null,null,null,0,null,null,null,null,null,0]
[null,null,null,0,null,null,null,null,null,0]
[null,null,null,0,null,null,null,null,null,0]
[null,null,null,0,null,null,null,null,null,0]
[null,null,null,0,null,null,null,null,null,0]
[null,null,null,0,null,null,null,null,null,0]
[null,null,null,0,null,null,null,null,null,0]
[null,null,null,0,null,null,null,null,null,0]
[null,null,null,0,null,null,null,null,null,0]
[null,"To Collection",null,{"$f":"SUM(D7:D34)","v":0},null,null,null,null,"المجموع المرحل",0]
[null,null,null,{"$f":"F36*H36","v":0},null,null,null,null,null,0]
[null,null,null,0,null,null,null,null,null,0]
["15a.2","Supply, install and test drainage pipe work",null,0,null,null,null,null,"توريد، تركيب واختبار مواسير صرف نوع UPVC ","15a.2"]
[null,"UPVC schedule 40, including fittings, supports,",null,0,null,null,null,null,"جدول40 بما في ذلك قطع المواسير الخاصة شاملة",0]
[null,"hangers, sleeves, sealants, cast iron pipes",null,0,null,null,null,null,"أعمال التعليق والتدعيم والأجربة وموانع التسرب وكذلك ",0]
[null,"onroof for vent with caps as shown on ",null,0,null,null,null,null,"مواسيرالتهوية والغطاء على السطح من الحديد الزهر ",0]
[null,"drawings and as per specifications  section",null,0,null,null,null,null,"طبقا لما هومبين بالمخططات والمواصفات قسم 15420 ",0]
[null,15420,null,0,null,null,null,null,null,0]
[null,null,null,0]
["15a.2.1","160 mm dia",null,{"$f":"F45*H45","v":0},null,null,"M",null,"قطر 160 مم",{"$f":"A45","v":"15a.2.1"}]
[null,null,null,0,null,null,null,null,null,0]
["15a.2.2","110 mm dia",null,{"$f":"F47*H47","v":0},null,null,"M",null,"قطر 110 مم","15a.2.2"]
[null,null,null,0,null,null,null,null,null,0]
["15a.2.3","75 mm dia",null,{"$f":"F49*H49","v":0},null,null,"M",null,"قطر 75 مم","15a.2.3"]
[null,null,null,0,null,null,null,null,null,0]
["15a.2.4","50 mm dia",null,{"$f":"F51*H51","v":0},null,null,"M",null,"قطر 50 مم","15a.2.4"]
[null,null,null,0,null,null,null,null,null,0]
[null,null,null,0,null,null,null,null,null,0]
[null,null,null,0,null,null,null,null,null,0]
[null,null,null,0,null,null,null,null,null,0]
[null,null,null,0,null,null,null,null,null,0]
[null,null,null,0,null,null,null,null,null,0]
[null,null,null,0,null,null,null,null,null,0]
[null,null,null,0,null,null,null,null,null,0]
[null,null,null,0,null,null,null,null,null,0]
[null,null,null,0,null,null,null,null,null,0]
[null,"To Collection",null,{"$f":"SUM(D36:D61)","v":0},null,null,null,null,"المجموع المرحل",0]
[null,null,null,{"$f":"F63*H63","v":0},null,null,null,null,null,0]
[null,null,null,0,null,null,null,null,null,0]
["15a.3","Supply, install and test drainage piping ",null,0,null,null,null,null,"توريد وتركيب واختبار لوازم مواسير الصرف شاملة التدعيم","15a.3"]
[null,"specialities including supports and fixation as",null,0,null,null,null,null,"والتثبيت طبقا لما هو مبين بالمخططات والمواصفات قسم",0]
[null,"shown on drawings and as per specification ",null,0,null,null,null,null,"15420 .",0]
[null,"section 15420.",null,0,null,null,null,null,null,0]
["15a.3.1","50 mm dia floor drain, ref. (FD)",null,{"$f":"F69*H69","v":0},null,null,"No.",null,"بالوعة أرضية قطر 50 مم، مرجع (FD)","15a.3.1"]
[null,null,null,0,null,null,null,null,null,0]
["15a.3.2","110 mm dia floor cleanout, ref. (FCO)",null,{"$f":"F71*H71","v":0},null,null,"No.",null,"طبة تسليك ارضية بقطر 110 مم ، مرجع (FCO)","15a.3.2"]
[null,"    ",null,0,null,null,null,null,null,0]
["15a.3.3","75 mm dia floor cleanout, ref. (FCO)",null,{"$f":"F73*H73","v":0},null,null,"No.",null,"طبة تسليك ارضية بقطر 75 مم ، مرجع (FCO)","15a.3.3"]
[null,null,null,0,null,null,null,null,null,0]
["15a.3.4","75mm dia., roof drain, ref. (RD)",null,{"$f":"F75*H75","v":0},null,null,"No.",null,"بالوعة صرف مطر قطر 75 مم، مرجع (RD)","15a.3.4"]
[null,null,null,{"$f":"H76*F76","v":0},null,null,null,null,null,0]
["15a.3.5","75 mm dia splash to daylight",null,{"$f":"F77*H77","v":0},null,null,"No.",null,"مخرج صرف مياه امطار قطر 75 مم","15a.3.5"]
[null,null,null,0,null,null,null,null,null,0]
["15a.4","Supply &Install plastic gullytrap complete with",null,0,null,null,null,null,"توريد وتركيب وإختبار جاليتراب من البلاستيك كاملاً بالغطاء","15a.4"]
[null,"the grating and other fittings for the concrete",null,0,null,null,null,null,"المصفاة وكافة المشتملات من أعمال الخرسانة والتثبيت",0]
[null,"works and installing the rate shall include",null,0,null,null,null,null,"والفئة تشمل الحفر فى جميع أنواع التربة والردم ونقل",0]
[null,"excavation, backfilling, and pipes for",null,0,null,null,null,null,"المخلفات الى المقالب العمومية كاملاً طبقاً لأصول الصناعة",0]
[null,"wastwater connection to the nearest",null,0,null,null,null,null,"والمواصفات  الفنية قسم 02730 .",0]
[null,"inspection section 02730 chamber:",null,0,null,null,null,null,null,0]
[null,null,null,0,null,null,null,null,null,0]
["15a.4.1","Gullytrap, ref.(G) 30cm x 30cm",null,{"$f":"F86*H86","v":0},null,null,"No.",null,"جالتيراب مرجع (G) بالأبعاد 30سم×30سم ","15a.4.1"]
[null,null,null,0,null,null,null,null,null,0]
[null,null,null,0,null,null,null,null,null,0]
[null,"To Collection",null,{"$f":"SUM(D63:D88)","v":0},null,null,null,null,"المجموع المرحل",0]
[null,null,null,{"$f":"F90*H90","v":0},null,null,null,null,null,0]
[null,null,null,0,null,null,null,null,null,0]
["15a.5","Supply & Construct inspection chamber  of",null,0,null,null,null,null,"توريد وانشاء غرفة تفتيش من الخرسانة بالأبعاد والمناسيب","15a.5"]
[null,"reinforced concrete with dimension and levels",null,0,null,null,null,null,"الموضحة بالرسومات بما في ذلك توريد وتركيب غطاء",0]
[null,"from drawings with double cover cast iron and",null,0,null,null,null,null,"مزدوج من الحديد الزهر كاملا بالحلق والفئـة تشمل",0]
[null,"the rate shall include excavation, backfilling,",null,0,null,null,null,null,"الحفروالردم وأعمال الخرسانه في جميع كاملا  طبقاً لأصول",0]
[null,"plain & reinforced concrete work and covers,",null,0,null,null,null,null,"الصناعة والمواصفات الفنية قسم 02730:",0]
[null,"etc. in accordance with specifications section",null,0,null,null,null,null,null,0]
[null,"02730 and drawings ",null,0,null,null,null,null,null,0]
[null,null,null,0,null,null,null,null,null,0]
["15a.5.1","Inspection chamber 60cmx60cm.depth(max.80cm)",null,{"$f":"F100*H100","v":0},null,null,"No.",null,"غرفة تفتيش بالأبعاد 60سم×60سم  وعمق (حتى 80سم)","15a.5.1"]
[null,null,null,0,null,null,null,null,null,0]
[null,null,null,null,null,null,null,null,null,0]
[null,null,null,null,null,null,null,null,null,0]
[null,null,null,null,null,null,null,null,null,0]
[null,null,null,null,null,null,null,null,null,0]
[null,null,null,null,null,null,null,null,null,0]
[null,null,null,null,null,null,null,null,null,0]
[null,null,null,null,null,null,null,null,null,0]
[null,null,null,null,null,null,null,null,null,{"$f":"A109","v":0}]
[null,null,null,null,null,null,null,null,null,0]
[null,null,null,null,null,null,null,null,null,0]
[null,null,null,null,null,null,null,null,null,0]
[null,null,null,null,null,null,null,null,null,0]
[null,null,null,null,null,null,null,null,null,0]
[null,null,null,{"$f":"H115*F115","v":0},null,null,null,null,null,0]
[null,"To Collection",null,{"$f":"SUM(D90:D115)","v":0},null,null,null,null,"المجموع المرحل",0]
[null,null,null,{"$f":"F117*H117","v":0},null,null,null,null,null,0]
[null,null,null,{"$f":"H118*F118","v":0},null,null,null,null,null,0]
[null,"Cold & Hot Water Piping Installation",null,0,null,null,null,null,"تركيبات مواسيرالمياه البارده والساخنه",0]
[null,null,null,0,null,null,null,null,null,0]
["15a.6","Supply, install and test cold & hot water pipe",null,0,null,null,null,null,"توريد وتركيب واختبار مواسير المياه البارده والساخنه ","15a.6"]
[null,"work upvc SCHEDULE 80 for potable, cold ",null,0,null,null,null,null,"نوع UPVC جدول 80 ومياه الشرب بما في ذلك قطع ",0]
[null,"water, including fixing of valves, fittings and",null,0,null,null,null,null,"المواسير الخاصة والمحابس شاملة أعمال التعليق والتدعيم",0]
[null,"supports, sleeves, as required as shown on",null,0,null,null,null,null,"والأجربة والتوصيل طبقا لما هو مبين بالمخططات ",0]
[null,"drawings and as per specifications section",null,0,null,null,null,null,"والمواصفات قسم 15411  .",0]
[null,15411,null,0,null,null,null,null,null,0]
[null,null,null,0]
["15a.6.1","25 mm dia",null,{"$f":"F128*H128","v":0},null,null,"M",null,"قطر 25 مم ","15a.6.1"]
[null,null,null,0,null,null,null,null,null,0]
["15a.6.2","20 mm dia",null,{"$f":"F130*H130","v":0},null,null,"M",null,"قطر 20 مم ","15a.6.2"]
[null,null,null,0,null,null,null,null,null,0]
["15a.7","Supply and installation of water heater with 50 lit",null,{"$f":"F132*H132","v":0},null,null,"No.",null,"توريد وتركيب سخان كهربائى سعه 50 لتر وقدره 1.2 كيلو","15a.7"]
[null,"capacity and 1.2kw power rating including",null,0,null,null,null,null,"وات شامله التدعيم والمحابس والتوصيلات طبقا لما هو مبين",0]
[null,"supports, valves, connections all as specifications",null,0,null,null,null,null,"بالمخططات والمواصفات.",0]
[null,"and drawings.",null,0,null,null,null,null,null,0]
[null,null,null,0,null,null,null,null,null,0]
[null,null,null,null,null,null,null,null,null,0]
[null,null,null,null,null,null,null,null,null,0]
[null,null,null,null,null,null,null,null,null,0]
[null,null,null,null,null,null,null,null,null,0]
[null,null,null,null,null,null,null,null,null,0]
[null,null,null,{"$f":"H142*F142","v":0},null,null,null,null,null,0]
[null,"To Collection",null,{"$f":"SUM(D117:D142)","v":0},null,null,null,null,"المجموع المرحل",0]
[null,null,null,{"$f":"F144*H144","v":0},null,null,null,null,null,0]
[null,null,null,{"$f":"H145*F145","v":0},null,null,null,null,null,0]
[null,"FIRE FIGHTINFG",null,0,null,null,null,null,"مقاومه الحريق",0]
[null,null,null,0,null,null,null,null,null,0]
["15a.8","Supply, install and testing of UL listed ABC",null,0,null,null,null,null,"توريد وتركيب واختبار طفاية حريق متعددة الأغراض ABC ","15a.8"]
[null,"multi-purpose fire extinguisher as shown on",null,0,null,null,null,null,"على أن تكون مدرجة في قائمة (UL) طبقا لما هو مبين",0]
[null,"drawings and as per specifications section",null,0,null,null,null,null,"بالمخططات والمواصفات قسم 15300.",0]
[null,15300,null,{"$f":"H151*F151","v":0},null,null,null,null,null,0]
[null,null,null,{"$f":"H152*F152","v":0},null,null,null,null,null,0]
["15a.8.1","6 kg fire extinguisher ref.FE",null,{"$f":"F153*H153","v":0},null,null,"No.",null,"طفايه حريق وزن 6 كجم مرجع (FE)","15a.8.1"]
[null,null,null,0]
[null,null,null,0]
[null,null,null,0]
[null,null,null,0]
[null,null,null,0]
[null,null,null,0]
[null,null,null,0]
[]
[]
[]
[]
[]
[]
[]
[]
[]
[null,"To Collection",null,{"$f":"SUM(D144:D169)","v":0},null,null,null,null,"المجموع المرحل"]
[null,null,null,{"$f":"F171*H171","v":0}]
[]
[null,"Total Summary",null,null,null,null,null,null,"إجمالى ملخص الأعمال"]
[]
[null,"Sheet - 01",null,{"$f":"D35","v":0},null,null,null,null,"صفحة - 01"]
[]
[null,"Sheet - 02",null,{"$f":"D62","v":0},null,null,null,null,"صفحة - 02"]
[]
[null,"Sheet - 03",null,{"$f":"D89","v":0},null,null,null,null,"صفحة - 03"]
[]
[null,"Sheet - 04",null,{"$f":"D116","v":0},null,null,null,null,"صفحة - 04"]
[]
[null,"Sheet - 05",null,{"$f":"D143","v":0},null,null,null,null,"صفحة - 05"]
[]
[null,"Sheet - 06",null,{"$f":"D170","v":0},null,null,null,null,"صفحة - 06"]
[]
[]
[]
[]
[]
[]
[]
[]
[]
[]
[]
[null,"To Bill Summary",null,{"$f":"SUM(D173:D196)","v":0},null,null,null,null,"المجموع المرحل إلى ملخص جدول الكميات"]

{"sheet":"Div.15b","index":11,"n_rows":89,"n_cols":10,"rows_kept":89,"cut":false,"hidden":false,"merged":[[5,0,6,0],[5,1,6,1],[5,8,6,8],[5,9,6,9]]}
[]
[]
[]
[]
[]
["ITEM","DESCRIPTION","السعر الإجمالي كتابة","السعر الإجمالي رقمًا","السعر الإفرادي كتابة ","السعر الإفرادي رقماً","الوحدة","الكمية","الـــوصــــف","بند"]
[null,null,"Total in words (SR) ","Total in figures","Rate in figures","RATE","UNIT","QTY"]
[]
["15b","DIVISION 15b : MECHANICAL ",null,{"$f":"H9*F9","v":0},null,null,null,null,"الباب الخامس عشر (15ب): الأعمال الميكانيكية",{"$f":"$A$9","v":"15b"}]
[null,null,null,{"$f":"H10*F10","v":0}]
[null,"Fans",null,{"$f":"H11*F11","v":0},null,null,null,null,"المراوح"]
[null,null,null,0]
["15b.1","Supply, install, testing , submit & gurantee",null,null,null,null,null,null,"توريد ,تركيب,اختبار ,تسليم و ضمان مروحة طرد محورية",{"$f":"A13","v":"15b.1"}]
[null,"wall mounted axial exhaust fan complete with",null,null,null,null,null,null,"من النوع الحائطى كاملة بالمحرك الكهربائى ومفتاح التشغيل",0]
[null,"electric motor,  gravity damper, operating",null,null,null,null,null,null,"ودامبر يغلق بالجاذبية عند الإيقاف كامله بإطار التثبيت",0]
[null,"switch complete with support framing,",null,null,null,null,null,null,"والخامد ومسامير التثبيت وجميع الإكسسوارات اللازمة",0]
[null,"backdraft damper and mounting bolts and all",null,null,null,null,null,null,"للتثبيت طبقا للمخططات والمواصفات 15860",0]
[null,"necessary fixing accessories according to",null,null,null,null,null,null,null,0]
[null,"plans and project specifications 15860",null,null,null,null,null,null,null,0]
[null,null,null,null,null,null,null,null,null,0]
["15b.1.1","Ref. (EF-01) with capacity 65 L/S and static ",null,{"$f":"F21*H21","v":0},null,null,"No.",null,"مرجع (EF-01) سعه 65 ل/ث عند ضغط استاتيكى ","15b.1.1"]
[null,"pressure 37.5 Pa.",null,null,null,null,null,null,"37.5 باسكال.",0]
[null,null,null,null,null,null,null,null,null,0]
[null,null,null,{"$f":"H24*F24","v":0},null,null,null,null,null,0]
[null,null,null,0,null,null,null,null,null,0]
[null,null,null,0,null,null,null,null,null,0]
[null,null,null,0,null,null,null,null,null,0]
[null,null,null,0,null,null,null,null,null,0]
[null,null,null,0,null,null,null,null,null,0]
[null,null,null,0,null,null,null,null,null,0]
[null,null,null,0,null,null,null,null,null,0]
[null,null,null,0,null,null,null,null,null,0]
[null,null,null,0,null,null,null,null,null,0]
[null,null,null,0,null,null,null,null,null,0]
[null,"To Collection",null,{"$f":"SUM(D7:D34)","v":0},null,null,null,null,"المجموع المرحل"]
[null,null,null,{"$f":"F36*H36","v":0},null,null,null,null,null,0]
[null,null,null,0,null,null,null,null,null,0]
[null,"Air Conditioning Units",null,0,null,null,null,null,"وحدات تكييف الهواء :",0]
[null,null,null,0,null,null,null,null,null,0]
["15b.2","Supply, install, testing , submit & gurantee Air",null,0,null,null,null,null,"توريد , تركيب, اختبار ,تسليم و ضمان  وحدة تكييف منفصلة","15b.2"]
[null,"cooled DX. Hi-wall decorative split units C/W",null,0,null,null,null,null,"من النوع الحائطي شاملة الوحدة الداخلية والخارجية",0]
[null,"evaporator, condenser , refrigerant pipes,",null,0,null,null,null,null,"ومواسير التبريد وكابلات التحكم كاملة بجميع الإكسسوارات",0]
[null,"control cables and all accessories according",null,0,null,null,null,null,"اللازمة طبقا للمخططات والمواصفات قسم 15781 وكل ما",0]
[null,"to plans and project specifications section",null,0,null,null,null,null,"يلزم لانهاء العمل على الوجه الاكمل بالسعات التاليه :",0]
[null,"15781 for proper and safe operation with the",null,0,null,null,null,null,null,0]
[null,"following capacities:",null,0,null,null,null,null,null,0]
[null,null,null,0,null,null,null,null,null,0]
["15b.2.1","Ref. (DXFCU-01/ACCU-01) with nominal cooling ",null,{"$f":"F48*H48","v":0},null,null,"No.",null,"مرجع (DXFCU-01/ACCU-01) بسعه تبريد أسمية","15b.2.1"]
[null,"capacity 5.3 KW , heating capacity 1.5 KW",null,0,null,null,null,null," 5.3 كيلو وات , سعه التسخبن 1.5 كيلووات",0]
[null,null,null,0,null,null,null,null,null,0]
["15b.2.2","Ref. (DXFCU-02/ACCU-02) with nominal cooling ",null,{"$f":"F51*H51","v":0},null,null,"No.",null,"مرجع (DXFCU-02/ACCU-02) بسعه تبريد أسمية","15b.2.2"]
[null,"capacity 7.1 KW , heating capacity 2 KW",null,0,null,null,null,null," 7.1 كيلو وات , سعه التسخبن 2 كيلووات",0]
[null,null,null,0,null,null,null,null,null,0]
["15b.3","Supply, install and test door lover as per",null,0,null,null,null,null,"توريد وتركيب واختبار مدخل هواء بالباب حسب الموضح","15b.3"]
[null,"drawings and specifications section 05500",null,0,null,null,null,null,"بالمخططات والمواصفات قسم 05500"]
[null,null,null,0]
["15b.3.1","Ref, door louver size (500 x 300) mm",null,{"$f":"F57*H57","v":0},null,null,"No.",null,"مرجع ، door louver مقاس (500×300 ) مم",{"$f":"A57","v":"15b.3.1"}]
[null,null,null,0]
[]
[]
[null,null,null,0]
[null,"To Collection",null,{"$f":"SUM(D36:D61)","v":0},null,null,null,null,"المجموع المرحل"]
[null,null,null,{"$f":"F63*H63","v":0}]
[]
[null,"Total Summary",null,null,null,null,null,null,"إجمالى ملخص الأعمال"]
[]
[null,"Sheet - 01",null,{"$f":"D35","v":0},null,null,null,null,"صفحة - 01"]
[]
[null,"Sheet - 02",null,{"$f":"D62","v":0},null,null,null,null,"صفحة - 02"]
[]
[]
[]
[]
[]
[]
[]
[]
[]
[]
[]
[]
[]
[]
[]
[]
[]
[]
[]
[null,"To Bill Summary",null,{"$f":"SUM(D65:D88)","v":0},null,null,null,null,"المجموع المرحل إلى ملخص جدول الكميات"]

{"sheet":"Div.16","index":12,"n_rows":307,"n_cols":10,"rows_kept":307,"cut":false,"hidden":false,"merged":[[5,0,6,0],[5,1,6,1],[5,8,6,8],[5,9,6,9]]}
[]
[]
[]
[]
[]
["ITEM","DESCRIPTION","السعر الإجمالي كتابة","السعر الإجمالي رقمًا","السعر الإفرادي كتابة ","السعر الإفرادي رقماً","الوحدة","الكمية","الـــوصــــف","بند"]
[null,null,"Total in words (SR) ","Total in figures","Rate in figures","RATE","UNIT","QTY"]
[null,null,null,{"$f":"H8*F8","v":0}]
[16,"DIVISION 16: ELECTRICAL ",null,null,null,null,null,null,"القسم السادس عشر: الأعمال الكهربائية",{"$f":"A9","v":16}]
[]
[null,"PRIMARY POWER SUPPLY  ",null,null,null,null,null,null,"تركيبات إمداد القوى الكهربائية الأساسية",0]
[]
[null,"GENERALLY",null,null,null,null,null,null,"عام"]
[]
[null,"Contractor is responsible for the coordination and",null,null,null,null,"Note",null,"المقاول مسئول عن التنسيـق والاتصال مع  مقاول أعمال البنية"]
[null,"liaison with the infrastructure's contractor or  ",null,null,null,null,null,null,"التحتية أو فريق الصيانة الموجود بالموقع لضمان التشغيل"]
[null,"maintenance team who is available on the site to",null,null,null,null,null,null,"الكامل للمبنى وتوصيل الكابل الرئيسي المغذى لذلك بموجب"]
[null,"ensure the complete operation of the building  and",null,null,null,null,null,null,"مخطط أعمال البنية التحتية  أو أحدث المخططات التنفيذية أو"]
[null,"connection  main power cable , in accordance to",null,null,null,null,null,null,"مخططات الأعمال التي تم تنفيذها المتوفرة بالموقع"]
[null,"the infra structure drawings  or the latest shop"]
[null,"drawings or as-built drawings available on the site"]
[]
[]
[null,null,null,{"$f":"H24*F24","v":0},null,null,null,null,null,{"$f":"A24","v":0}]
[null,null,null,0,null,null,null,null,null,0]
[null,null,null,0,null,null,null,null,null,0]
[null,null,null,0,null,null,null,null,null,0]
[null,null,null,0,null,null,null,null,null,0]
[null,null,null,0,null,null,null,null,null,0]
[null,null,null,0,null,null,null,null,null,0]
[null,null,null,0,null,null,null,null,null,0]
[null,null,null,0,null,null,null,null,null,0]
[]
[null,null,null,0,null,null,null,null,null,0]
[null,null,null,0,null,null,null,null,null,0]
[null,"To Collection",null,{"$f":"SUM(D7:D35)","v":0},null,null,null,null,"المجموع المرحل",0]
[null,null,null,{"$f":"F37*H37","v":0},null,null,null,null,null,0]
[null,null,null,0,null,null,null,null,null,0]
[null,"POWER AND LIGHTING INSTALLATION",null,0,null,null,null,null,"تركيبات القوى و الانارة"]
[null,null,null,0]
["16.1","Supply, install,  testing, commissioning, panel",null,0,null,null,null,null,"توريد وتركيب واختبار وتشغيل لوحات التوزيع شاملة جميع",{"$f":"A41","v":"16.1"}]
[null,"boards including accessories, cables/ wires,",null,0,null,null,null,null,"الملحقات الكوابل/ الأسلاك وأدوات التثبيت ومواسير",0]
[null,"fixing, conduits, and all electrical circuits in",null,0,null,null,null,null,"التوصيل- يجب ان تكون جميع الدوائر الكهربائية فى الأماكن",0]
[null,"wet area must be supplied with ground fault",null,0,null,null,null,null,"الرطبة مزودة بوحدة حماية ضد التسرب الأرضى حسب",0]
[null,"interrupter unit as shown on drawing",null,0,null,null,null,null,"الموضح بالمخططات B05-EE-101",0]
[null,"B05-EE-101and described in",null,0,null,null,null,null,"وحسب المواصفات القسم 16442 والمشار إليها في",0]
[null,"specifications section16442 and mentioned ",null,0,null,null,null,null,"الجداول الخاصة باللوحات",0]
[null,"in schedule panels.",null,0,null,null,null,null,null,0]
[null,null,null,0,null,null,null,null,null,0]
["16.1.1","ReF.  LP-ADM panel ",null,{"$f":"F50*H50","v":0},null,null,"No.",null,"لوحة مرجع   LP-ADM","16.1.1"]
[null,null,null,0,null,null,null,null,null,0]
[null,null,null,0,null,null,null,null,null,0]
[null,null,null,0,null,null,null,null,null,0]
[null,null,null,0,null,null,null,null,null,0]
[null,null,null,0,null,null,null,null,null,0]
[null,null,null,0,null,null,null,null,null,0]
[null,null,null,0,null,null,null,null,null,0]
[null,null,null,0,null,null,null,null,null,0]
[null,null,null,0,null,null,null,null,null,0]
[null,null,null,0,null,null,null,null,null,0]
[null,null,null,0,null,null,null,null,null,0]
[null,null,null,0,null,null,null,null,null,0]
[null,"To Collection",null,{"$f":"SUM(D37:D62)","v":0},null,null,null,null,"المجموع المرحل",0]
[null,null,null,{"$f":"F64*H64","v":0},null,null,null,null,null,0]
[null,null,null,{"$f":"H65*F65","v":0},null,null,null,null,null,0]
[null,"POWER AND LIGHTING INSTALLATION",null,0,null,null,null,null,"تركيبات القوى و الانارة",0]
[null,null,null,0,null,null,null,null,null,0]
["16.2","Supply, install,  test and  commissioning of",null,0,null,null,null,null,"توريد وتركيب واختبار وتشغيل  لوازم القوى والإنارة للمبنى ","16.2"]
[null,"power and lighting accessories for the",null,0,null,null,null,null,"التي تشتمل على جميع العلب واللوحات والمفاتيح والمآخذ ",0]
[null,"building including all necessary boxes,",null,0,null,null,null,null,"والمغلف المعزول بما في ذلك الدوائر الفرعية النهائية شاملا ",0]
[null,"switches, sockets 16050 and as required seal",null,0,null,null,null,null,"الكوابل/ الأسلاك ومواسير التوصيل بما في ذلك الموصلات ",0]
[null,"enclosures. In addition to final sub-circuits",null,0,null,null,null,null,"ذات العلاقة حسب المطلوب لزوم المواقع الموضحة",0]
[null,"comprising cables / wires, conduits, fittings,",null,0,null,null,null,null,"بالمخططات B05-EE-101 وحسب",0]
[null,"related conductors required to suit the",null,0,null,null,null,null,"المذكور في المواصفات القسم 16050",0]
[null,"locations shown on drawings ",null,0,null,null,null,null,null,0]
[null,"B05-EE-101 and as described in specifications ",null,0,null,null,null,null,null,0]
[null,"section 16050",null,0,null,null,null,null,null,0]
[null,null,null,0,null,null,null,null,null,0]
["16.2.1","Industrial single phase switched socket 230 V, 20",null,{"$f":"F79*H79","v":0},null,null,"No.",null,"مأخذ صناعى أحادى الأوجه بمفتاح , 20 أمبير , 230 فولت ,","16.2.1"]
[null,"amp. 2-pin type complete with earthing contact,",null,0,null,null,null,null,"من النوع 2- pin , كامل مع وصلة ارضى و مقاومة للعوامل",0]
[null,"weatherproof type",null,0,null,null,null,null,"الجوية",0]
[]
["16.2.2","25/32A double pole switched fuse spur unit",null,{"$f":"F83*H83","v":0},null,null,"No.",null," 25/32 أمبير، مفتاح ثنائي القطبية بمصهر كاملا بلمبة بيان",{"$f":"A83","v":"16.2.2"}]
[null,"complete with neon indicator for  control air",null,null,null,null,null,null," لزوم التكييف وسخان المياه",0]
[null,"condition and water heater",null,null,null,null,null,null,null,0]
[null,null,null,0,null,null,null,null,null,0]
["16.2.3","Wall mounted exhaust fan outlets ",null,{"$f":"F87*H87","v":0},null,null,"No.",null,"مخرج بالحائط لمروحة الطرد ","16.2.3"]
[null,null,null,0,null,null,null,null,null,0]
[null,null,null,0,null,null,null,null,null,0]
[null,"To Collection",null,{"$f":"SUM(D64:D89)","v":0},null,null,null,null,"المجموع المرحل",0]
[null,null,null,{"$f":"F91*H91","v":0},null,null,null,null,null,0]
[null,null,null,0,null,null,null,null,null,0]
[null,"POWER AND LIGHTING INSTALLATION",null,0,null,null,null,null,"تركيبات القوى و الانارة",0]
[]
["16.2.4","Single phase switched socket 16A, 230V,2-pin",null,{"$f":"F95*H95","v":0},null,null,"No.",null,"مأخذ أحادى الأوجه بمفتاح 16 أمبير 230 فولت من نوع 2-",{"$f":"A95","v":"16.2.4"}]
[null,"type complete with earthing contact",null,{"$f":"H96*F96","v":0},null,null,null,null,"pin , كامل بوصلة أرضى ",0]
[null,null,null,0,null,null,null,null,null,0]
["16.2.5","Single phase switched socket 16A, 230V,2-pin",null,{"$f":"F98*H98","v":0},null,null,"No.",null,"مأخذ أحادى الأوجه بمفتاح 16 أمبير 230 فولت من نوع 2-","16.2.5"]
[null,"type complete with earthing contact, weatherproof",null,0,null,null,null,null,"pin , كامل بوصلة أرضى , مقاوم للعوامل الجوية",0]
[null,"type",null,0,null,null,null,null,null,0]
[null,null,null,0,null,null,null,null,null,0]
["16.2.6","Two gang, one way lighting switch , 20 A, ",null,{"$f":"F102*H102","v":0},null,null,"No.",null,"مفتاح انارة , اتجاه واحد, قطعتين,20 أمبير , ","16.2.6"]
[null,null,null,{"$f":"H103*F103","v":0},null,null,null,null,null,0]
["16.2.7","Two gang, one way lighting switch , 20 A, ",null,{"$f":"F104*H104","v":0},null,null,"No.",null,"مفتاح انارة , اتجاه واحد  قطعتين,20 أمبير ,  مقاومة للعوامل",{"$f":"A104","v":"16.2.7"}]
[null,"weatherproof type",null,{"$f":"H105*F105","v":0},null,null,null,null,"الجوية",0]
[null,null,null,0,null,null,null,null,null,0]
["16.2.8","One gang, one way lighting switch , 20 A, ",null,{"$f":"F107*H107","v":0},null,null,"No.",null,"مفتاح انارة , ااتجاه واحد, قطعة واحدة,20 أمبير , ","16.2.8"]
[]
[]
[]
[]
[null,null,null,0,null,null,null,null,null,0]
[null,null,null,0,null,null,null,null,null,0]
[null,null,null,0,null,null,null,null,null,0]
[null,null,null,0,null,null,null,null,null,0]
[null,null,null,0,null,null,null,null,null,0]
[null,"To Collection",null,{"$f":"SUM(D91:D116)","v":0},null,null,null,null,"المجموع المرحل",0]
[null,null,null,{"$f":"F118*H118","v":0},null,null,null,null,null,0]
[null,null,null,0,null,null,null,null,null,0]
[null,"POWER AND LIGHTING INSTALLATION",null,0,null,null,null,null,"تركيبات القوى و الانارة",0]
[null,null,null,0,null,null,null,null,null,0]
[16.3,"Supply, install, test and commission the",null,0,null,null,null,null,"توريد وتركيب واختبار وتشغيل وحدات الإنارة التالية, والبند ",16.3]
[null,"following lighting fixtures complete with",null,0,null,null,null,null,"يشمل وحدات الإنارة كاملة مع اللمبات أو الأنابيب، علب",0]
[null,"lamps or tubes, connection boxes, heat",null,0,null,null,null,null,"التوصيل، الكوابل المرنة المقاومة للحرارة، التثبيت ",0]
[null,"resisting flexible cables, fixings and",null,0,null,null,null,null,"والتعليق وأعمال التأريض شاملا علب التوصيل، الألواح،",0]
[null,"suspensions, grounding work including all",null,0,null,null,null,null,"الكوابل/الأسلاك ذات العلاقة ومواسير التوصيل حسب",0]
[null,"necessary boxes, plates, and associated",null,0,null,null,null,null,"الموضح بالمخططاتB05-EE-101",0]
[null,"cables/wires and conduits as shown on",null,0,null,null,null,null,"والمواصفات قسم 16500",0]
[null,"drawings B05-EE-101 and specs ",null,0,null,null,null,null,null,0]
[null,"section 16500",null,0,null,null,null,null,null,0]
[null,null,null,0,null,null,null,null,null,0]
["16.3.1","(600X600mm) surface mounted complete with LED",null,{"$f":"F132*H132","v":0},null,null,"No.",null,"كشاف أناره(600X600مم) يثبت (surface mounted)","16.3.1"]
[null,"light lamp, 57 watt ,IP 20 and all accessories.",null,null,null,null,"  ",null,"بلمبة LEDموفرة 57 وات و درجة حماية IP 20 مع جميع"]
[null,null,null,null,null,null,null,null,"الملحقات."]
[]
["16.3.2","(600X600mm) surface mounted complete with LED",null,{"$f":"F136*H136","v":0},null,null,"No.",null,"كشاف أناره(600X600مم) يثبت (surface mounted)","16.3.2"]
[null,"light lamp, 57 watt ,IP 20 and all accessories.",null,null,null,null,"  ",null,"بلمبة LEDموفرة 57 وات و درجة حماية IP 20 مع جميع"]
[null,"provided with back up battery for 3 hours duration",null,null,null,null,null,null,"الملحقات. والبند مزودة بالبطارية  للعمل 3 ساعات عند انقطاع"]
[null,"for maintained electricity",null,null,null,null,null,null,"التيار الرئيسي."]
[]
["16.3.3"," surface LED  lamp ,12watt ",null,{"$f":"F141*H141","v":0},null,null,"No.",null,"كشاف أناره 12 وات من نوع LED يثبت (surface","16.3.3"]
[null,"(IP20) complete with all accessories.",null,null,null,null,null,null,"mounted) بدرجة حماية (IP20) كامل بجميع الملحقات"]
[null,null,null,0,null,null,null,null,null,0]
[null,"To Collection",null,{"$f":"SUM(D118:D143)","v":0},null,null,null,null,"المجموع المرحل",0]
[null,null,null,{"$f":"F145*H145","v":0},null,null,null,null,null,0]
[null,null,null,0,null,null,null,null,null,0]
[null,"POWER AND LIGHTING INSTALLATION",null,0,null,null,null,null,"تركيبات القوى و الانارة",0]
[null,null,null,0,null,null,null,null,null,0]
["16.4.4","surface LED  lamp ,12watt (IP20) complete with all",null,{"$f":"F149*H149","v":0},null,null,"No.",null,"كشاف أناره 12 وات من نوع LED يثبت (surface","16.4.4"]
[null,"accessories. provided with back up battery for 3",null,null,null,null,null,null,"mounted) بدرجة حماية (IP20) كامل بجميع الملحقات",0]
[null,"hours duration complete with al lrequired",null,{"$f":"H151*F151","v":0},null,null,null,null,"مزودة بالبطارية وشاحن البطارية للعمل 3 ساعات عند انقطاع",0]
[null,"accessories. ",null,null,null,null,null,null,"التيار الرئيسي  كاملا بجميع الملحقات اللازمة. ",0]
[null,null,null,null,null,null,null,null,null,0]
["16.4.5","Wall mounted luminaire with 11 watt , LED lamp",null,{"$f":"F154*H154","v":0},null,null,"No.",null,"كشاف اضاءة للتثبيت بالحائط مزود بلمبه 11واتLED ","16.4.5"]
[null,"(IP65), complete with all required accessories. ",null,null,null,null,null,null,"موفرة بدرجة حماية  (IP65)  كامل بجميع الملحقات اللازمة. ",0]
[]
["16.3.6"," surface mounted complete with LED lamp ,11watt ",null,{"$f":"F157*H157","v":0},null,null,"No.",null,"كشاف أناره يثبت(surface mounted) بلمبة LEDموفرة","16.3.6"]
[null," ,(IP43) and all accessories.",null,null,null,null,null,null,"11 وات و درجة حماية (IP43) مع جميع الملحقات."]
[null,null,null,null,null,null,null,null,null,0]
[]
[]
[null,null,null,null,null,null,null,null,null,0]
[]
[]
[]
[]
[]
[]
[null,null,null,{"$f":"H169*F169","v":0},null,null,null,null,null,0]
[]
[]
[null,"To Collection",null,{"$f":"SUM(D145:D171)","v":0},null,null,null,null,"المجموع المرحل",{"$f":"A172","v":0}]
[null,null,null,{"$f":"F173*H173","v":0},null,null,null,null,null,0]
[null,null,null,0,null,null,null,null,null,0]
[null,"EARTHING AND LIGHTNING PROTECTION",null,0,null,null,null,null,"نظام التأريض والحماية من الصواعق",0]
[null,null,null,0,null,null,null,null,null,0]
[16.399999999999999,"Supply, install, test and commissioning of",null,0,null,null,null,null,"توريد وتركيب واختبار وتشغيل نظام تأريض ومانعة",16.399999999999999]
[null,"earthing and lightning system includes copper",null,0,null,null,null,null,"الصواعق للمبنى يشتمل على موصلات من النحاس وفقا",0]
[null,"conductors according to the sectors contained",null,0,null,null,null,null,"للقطاعات الواردة فى مستندات المشروع وجميع الأعمال",0]
[null,"in project documents and all actions related to",null,0,null,null,null,null,"المتعلقة بذلك لملائمة المقاومة الأرضیة المطلوبة حسب",0]
[null,"the appropriate floor- resistance required as",null,0,null,null,null,null,"الموضح بالمخططاتB05-EE-101",0]
[null,"shown on drawings B05- EE-101 ,",null,0,null,null,null,null,"والمذكوربالمواصفات القسم 16452",0]
[null,"and as described in specifications, section",null,0,null,null,null,null,null,0]
[null,"16452",null,0,null,null,null,null,null,0]
[]
["16.4.1","Complete building grounding and lightning",null,{"$f":"F186*H186","v":0},null,null,"Item",null,"لزوم الشبكة الكاملة للتأريض وحماية المبنى من الصواعق","16.4.1"]
[null,"protection system network to suit the required",null,0,null,null,null,null,"اللازمة للوصول إلى المقاومة الأرضية المطلوبة",0]
[null,"ground ",null,0,null,null,null,null,null,0]
[null,null,null,0,null,null,null,null,null,0]
[null,null,null,0,null,null,null,null,null,0]
[null,null,null,0,null,null,null,null,null,0]
[null,null,null,0,null,null,null,null,null,0]
[null,null,null,0,null,null,null,null,null,0]
[null,null,null,0,null,null,null,null,null,0]
[null,null,null,0,null,null,null,null,null,0]
[null,null,null,0,null,null,null,null,null,0]
[null,null,null,0,null,null,null,null,null,0]
[null,null,null,0,null,null,null,null,null,0]
[null,"To Collection",null,{"$f":"SUM(D173:D198)","v":0},null,null,null,null,"المجموع المرحل",0]
[null,null,null,{"$f":"F200*H200","v":0},null,null,null,null,null,0]
[null,null,null,0,null,null,null,null,null,0]
[null,"FIRE ALARM SYSTEM ",null,0,null,null,null,null,"نظام الكشف والإنذار عن الحريق ",0]
[]
[16.5,"Supply, install test and commissioning of fire ",null,null,null,null,null,null,"توريد وتركيب واختبار وتشغيل نظام  إنذار الحريق  و الذى","16.5"]
[null,"alarm system which consists of fire alarm",null,0,null,null,null,null,"يتكون من معدات انذار الحريق للمبنى شاملة الكابلات",0]
[null,"equipments for the building including cables,",null,0,null,null,null,null,"والمواسير , صناديق السحب وجميع الاعمال اللازمة ",0]
[null,"conduits, pull boxes and all required works for",null,0,null,null,null,null,"للتركيب والتشغيل  والربط مع غرفة الحارس (B03) حسب",0]
[null,"installation and complete operation and",null,0,null,null,null,null,"الموضح بالمخططات B05-T-001 &B03-T-001",0]
[null,"connection required with guard room as",null,0,null,null,null,null,"والموصف بالمواصفات القسم 16721 . والبند يشمل ولا",0]
[null,"shown with guard room building  (B03) as",null,0,null,null,null,null,"يقتصر على:",0]
[null,"shown on drawings B05-T-001 &B03-T-001",null,0,null,null,null,null,null,0]
[null,"and as described in specification section 16721",null,0,null,null,null,null,null,0]
[null,". to suit system consists of but not limited to:",null,0,null,null,null,null,null,0]
[null,null,null,0,null,null,null,null,null,0]
["16.1.1","Addressable Intelligent\n Photo-Electric smoke",null,{"$f":"F215*H215","v":0},null,null,"No.",null,"كاشف دخان كهروضوئي معنون ذكي ","16.1.1"]
[null,"detector",null,0,null,null,null,null,null,0]
[null,null,null,0,null,null,null,null,null,0]
["16.5.2","Addressable intelligent fixed  tempreture heat",null,{"$f":"F218*H218","v":0},null,null,"No.",null,"كاشف حراري معنون ذكي عند درجة حرارة ثابتة.","16.5.2"]
[null,"detector.",null,0,null,null,null,null,null,0]
[]
["16.5.3","Addressable wall mounted, alarm sounder.\n",null,{"$f":"F221*H221","v":0},null,null,"No.",null,"وحدة صوتية للإنذار مزودة بإ ضاءة (Strob light) معنون ",{"$f":"A221","v":"16.5.3"}]
[null,"strobe light , weather proof type",null,{"$f":"H222*F222","v":0},null,null,null,null,"من النوع المقاوم للعوامل الجوية .",0]
[null,null,null,0,null,null,null,null,null,0]
[null,null,null,{"$f":"H224*F224","v":0},null,null,null,null,null,{"$f":"A224","v":0}]
[null,null,null,0]
[null,"To Collection",null,{"$f":"SUM(D200:D225)","v":0},null,null,null,null,"المجموع المرحل",0]
[null,null,null,{"$f":"F227*H227","v":0},null,null,null,null,null,0]
[null,null,null,0,null,null,null,null,null,0]
[null,"FIRE ALARM SYSTEM ",null,0,null,null,null,null,"نظام الكشف والإنذار عن الحريق ",0]
[null,null,null,0,null,null,null,null,null,0]
["16.5.4","Fire alarm manual call station , weather proof type. ",null,{"$f":"F231*H231","v":0},null,null,"No.",null,"محطة نداء يدوية للإنذار الحريق من النوع المقاوم للعوامل","16.5.4"]
[null,null,null,0,null,null,null,null,"الجوية . ",0]
[]
["16.5.5","Pull box fire alarm system  Ref.  (PB)",null,{"$f":"F234*H234","v":0},null,null,"No.",null,"علبة سحب لنظام الانذارعن الحريق   مرجع  (PB)","16.5.5"]
[null,null,null,{"$f":"H235*F235","v":0},null,null,null,null,null,0]
[]
[null,null,null,null,null,null,null,null,null,{"$f":"A237","v":0}]
[]
[null,null,null,{"$f":"H239*F239","v":0}]
[null,null,null,0]
[null,null,null,0,null,null,null,null,null,0]
[null,null,null,0,null,null,null,null,null,0]
[null,null,null,0,null,null,null,null,null,0]
[null,null,null,0,null,null,null,null,null,0]
[null,null,null,0,null,null,null,null,null,0]
[null,null,null,0,null,null,null,null,null,0]
[null,null,null,0,null,null,null,null,null,0]
[null,null,null,0,null,null,null,null,null,0]
[null,null,null,0,null,null,null,null,null,0]
[null,null,null,0,null,null,null,null,null,0]
[null,null,null,0,null,null,null,null,null,0]
[null,null,null,0,null,null,null,null,null,0]
[null,"To Collection",null,{"$f":"SUM(D227:D252)","v":0},null,null,null,null,"المجموع المرحل",0]
[null,null,null,{"$f":"F254*H254","v":0},null,null,null,null,null,0]
[null,null,null,0,null,null,null,null,null,0]
[null,"DATA AND TELEPHONE SYSTEM ",null,0,null,null,null,null,"نظام البيانات والتليفونات ",0]
[null,null,null,0,null,null,null,null,null,0]
[16.600000000000001,"Supply, install, test telephone & data system",null,0,null,null,null,null,"توريد، تركيب،اختبار نظام التليفونات والبيانات والذي يشتمل",16.600000000000001]
[null,"including Data / Telephone outlet including",null,0,null,null,null,null,"مخارج التليفون والبيانات شاملا العلب والمآخذ والكوابل /",0]
[null,"telephone / Data sockets,all necessary boxes,",null,0,null,null,null,null,"الأسلاك ومواسير التوصيل بما في ذلك الموصلات ذات",0]
[null,"comprising cables / wires, conduits,",null,0,null,null,null,null,"العلاقة حسب الموضح بالمخططات B05-T-001",0]
[null,"fittings,related conductors as shown on",null,0,null,null,null,null,"&B03-T-001 والمواصفات القسم 16740.",0]
[null,"drawings B05-T-001 &B03-T-001",null,0,null,null,null,null,null,0]
[null,"specification section 16740",null,0,null,null,null,null,null,0]
[null,null,null,0,null,null,null,null,null,0]
[null,"To suit data / telephone system consists",null,null,null,null,null,null," لزوم نظام البيانات والهاتف والبند يشمل ولا يقتصر على:"]
[null,"of but not limited to:"]
[]
["16.6.1","Wall mounted telephone outlet located at 300 mm",null,{"$f":"F269*H269","v":0},null,null,"No.",null,"مخرج لمأخذ هاتف يثبت على الحائط على ارتفاع 300 مم","16.6.1"]
[null,"mm A.F.F.L  ,  Ref.   (1T )\n",null,{"$f":"H270*F270","v":0},null,null,null,null,"من مستوى تشطيب الارضية ,مرجع  (1T )"]
[]
["16.6.2","Wall mounted telephone outlet located at 1200 mm",null,{"$f":"F272*H272","v":0},null,null,"No.",null,"مخرج لمأخذ هاتف يثبت على الحائط على ارتفاع ","16.6.2"]
[null,"mm A.F.F.L,  Ref.  (1T )W",null,{"$f":"H273*F273","v":0},null,null,null,null,"1200 مم من مستوى تشطيب الارضية  ,مرجع  W(1T )"]
[]
["16.6.3","Wall mounted data (RJ-45) outlet located at 300",null,{"$f":"F275*H275","v":0},null,null,"No.",null,"مخرج لمأخذ بيانات (RJ-45)  يثبت على الحائط على ارتفاع","16.6.3"]
[null,"mm A.F.F.L,  Ref.  (1D )",null,{"$f":"H276*F276","v":0},null,null,null,null,"300 مم من مستوى تشطيب الارضية  ,مرجع (1D )"]
[]
["16.6.4","Pull box for  data / telephone system , Ref.  (PB)",null,{"$f":"F278*H278","v":0},null,null,"No.",null,"علبة سحب لنظام  البيانات والهاتف  مرجع  (PB)","16.6.4"]
[]
[null,"To Collection",null,{"$f":"SUM(D254:D279)","v":0},null,null,null,null,"المجموع المرحل"]
[null,null,null,{"$f":"F281*H281","v":0}]
[null,null,null,{"$f":"H282*F282","v":0}]
[null,"Total Summary",null,0,null,null,null,null,"إجمالى ملخص الأعمال"]
[]
[null,"Sheet - 01",null,{"$f":"D36","v":0},null,null,null,null,"صفحة - 01"]
[]
[null,"Sheet - 02",null,{"$f":"D63","v":0},null,null,null,null,"صفحة - 02"]
[]
[null,"Sheet - 03",null,{"$f":"D90","v":0},null,null,null,null,"صفحة - 03"]
[]
[null,"Sheet - 04",null,{"$f":"D117","v":0},null,null,null,null,"صفحة - 04"]
[]
[null,"Sheet - 05",null,{"$f":"D144","v":0},null,null,null,null,"صفحة - 05"]
[]
[null,"Sheet - 06",null,{"$f":"D172","v":0},null,null,null,null,"صفحة - 06"]
[]
[null,"Sheet - 07",null,{"$f":"D199","v":0},null,null,null,null,"صفحة - 07"]
[]
[null,"Sheet - 08",null,{"$f":"D226","v":0},null,null,null,null,"صفحة - 08"]
[]
[null,"Sheet - 09",null,{"$f":"D253","v":0},null,null,null,null,"صفحة - 09"]
[]
[null,"Sheet - 10",null,{"$f":"D280","v":0},null,null,null,null,"صفحة - 10"]
[]
[]
[]
[null,"To Bill Summary",null,{"$f":"SUM(D283:D306)","v":0},null,null,null,null,"المجموع المرحل إلى ملخص جدول الكميات"]

{"sheet":"Summary","index":13,"n_rows":35,"n_cols":10,"rows_kept":35,"cut":false,"hidden":false,"merged":[[5,8,6,8],[5,0,6,0],[5,1,6,1],[5,9,6,9]]}
[]
[]
[]
[]
[]
["ITEM","DESCRIPTION",null,null,null,"السعر الإجمالي رقمًا (ريالا سعودى)",null,null,"الـــوصــــف","بند"]
[null,null,null,null,null," Total in figures (SR)"]
[]
[null,"Total Summary All Works",null,null,null,null,null,null,"إجمالى ملخص جميع الأعمال"]
[]
[null,"DIVISION 2: SITE CONSTRUCTION",null,null,null,{"$f":"Div.02!D116","v":0},null,null,"القسم الثاني: أعمال الموقع"]
[]
[null,"DIVISION 3: CONCRETE",null,null,null,{"$f":"Div.03!D143","v":0},null,null,"القسم الثالث: أعمال الخرسانة"]
[]
[null,"DIVISION 4: MASONRY",null,null,null,{"$f":"Div.04!D35","v":0},null,null,"القسم الرابع: أعمال البناء"]
[]
[null,"DIVISION 5 - METALS",null,null,null,{"$f":"Div.05!D35","v":0},null,null,"القسم الخامس - الأعمال المعدنية"]
[]
[null,"DIVISON 6 - WOOD AND PLASTIC",null,null,null,{"$f":"Div.06!D35","v":0},null,null,"القسم السادس - أعمال الخشب والبلاستيك "]
[]
[null,"DIVISION 7: THERMAL AND MOISTURE PROTECTION",null,null,null,{"$f":"Div.07!D87","v":0},null,null,"القسم السابع: الوقاية من الرطوبة والحرارة"]
[]
[null,"DIVISION 8: DOORS WINDOWS",null,null,null,{"$f":"Div.08!D116","v":0},null,null,"القسم الثامن: الأبواب والنوافذ"]
[]
[null,"DIVISION 9: FINISHES",null,null,null,{"$f":"Div.09!D170","v":0},null,null,"القسم التاسع: التشطيب"]
[]
[null,"DIVISION 10: SPECILTIES",null,null,null,{"$f":"Div.10!D35","v":0},null,null,"القسم العاشر: الأعمال الخاصة"]
[]
[null,"DIVISION 15a: MECHANICAL  - PG",null,null,null,{"$f":"Div.15a!D197","v":0},null,null,"القسم الخامس عشر (15أ): الأعمال الميكانيكية - الصحى"]
[]
[null,"DIVISION 15b: MECHANICAL  - HVAC",null,null,null,{"$f":"Div.15b!D89","v":0},null,null,"القسم الخامس عشر (15ب): الأعمال الميكانيكية -  التكييف"]
[]
[null,"DIVISION 16: ELECTRICAL",null,null,null,{"$f":"Div.16!D307","v":0},null,null,"القسم السادس عشر: الأعمال الكهربائية"]
[]
[null,"To Tender Summary",null,null,null,{"$f":"SUM(F8:F34)","v":0},null,null,"إلى ملخص العطاء        "]